Workbook

Sheet PPF Calculator
Y1: 4000000
D2: PPF Calculator
H4: Prepared by: Karthikeyan Chellappa
E8: Input Parameters | H8: Calculations | M8: Output Values
E9: Investment Frequency | F9: Monthly | H9: PPF Interest Rate | K9: 0.087 | M9: Maturity Amount | N9: =J250 -> 4000000
E10: Investment Amount | F10: 11100.29572
H12: Year 1
E13: =IF(AND(F9="Monthly",F10*12>=150000),"Warning: Annual Investment should not exceed 1.5 lakh",IF(AND(F9="Quarterly",F10*4>150000),"Warning: Annual Investment should not exceed 1.5 lakh",IF(AND(F9="Half-Yearly",F10*2>150000),"Warning: Annual Investment should not exceed 1.5 lakh",IF(AND(F9="Annual",F10>150000),"Warning: Annual Investment should not exceed 1.5 lakh","")))) ->  | H13: Month | I13: Deposit | J13: Balance | K13: Interest
H14: Apr | I14: =$F$10 -> 11100.29572 | J14: =I14 -> 11100.29572 | K14: =J14*$K$9/12 -> 80.477144
H15: May | I15: =IF($F$9="Monthly",$F$10,0) -> 11100.29572 | J15: =I15+J14 -> 22200.59145 | K15: 160.954288
H16: Jun | I16: =IF($F$9="Monthly",$F$10,0) -> 11100.29572 | J16: =I16+J15 -> 33300.88717 | K16: 241.431432
H17: Jul | I17: =IF(OR($F$9="Monthly",$F$9="Quarterly"),$F$10,0) -> 11100.29572 | J17: 44401.1829 | K17: 321.908576
H18: Aug | I18: =IF($F$9="Monthly",$F$10,0) -> 11100.29572 | J18: 55501.47862 | K18: 402.38572
H19: Sep | I19: =IF($F$9="Monthly",$F$10,0) -> 11100.29572 | J19: 66601.77434 | K19: 482.862864
H20: Oct | I20: =IF($F$9<>"Annual",$F$10,0) -> 11100.29572 | J20: 77702.07007 | K20: 563.340008
H21: Nov | I21: =IF($F$9="Monthly",$F$10,0) -> 11100.29572 | J21: 88802.36579 | K21: 643.817152
H22: Dec | I22: =IF($F$9="Monthly",$F$10,0) -> 11100.29572 | J22: 99902.66152 | K22: 724.294296
H23: Jan | I23: =IF(OR($F$9="Monthly",$F$9="Quarterly"),$F$10,0) -> 11100.29572 | J23: 111002.9572 | K23: 804.77144
H24: Feb | I24: =IF($F$9="Monthly",$F$10,0) -> 11100.29572 | J24: 122103.253 | K24: 885.248584
H25: Mar | I25: =IF($F$9="Monthly",$F$10,0) -> 11100.29572 | J25: 133203.5487 | K25: 965.725728
H26: Year End Balance | J26: =J25+SUM(K14:K25) -> 139480.7659
H28: Year 2
H29: Month | I29: Deposit | J29: Balance | K29: Interest
H30: Apr | I30: =$F$10 -> 11100.29572 | J30: =I30+J26 -> 150581.0616 | K30: =J30*$K$9/12 -> 1091.712697
H31: May | I31: =IF($F$9="Monthly",$F$10,0) -> 11100.29572 | J31: =I31+J30 -> 161681.3574 | K31: 1172.189841
H32: Jun | I32: =IF($F$9="Monthly",$F$10,0) -> 11100.29572 | J32: =I32+J31 -> 172781.6531 | K32: 1252.666985
H33: Jul | I33: =IF(OR($F$9="Monthly",$F$9="Quarterly"),$F$10,0) -> 11100.29572 | J33: 183881.9488 | K33: 1333.144129
H34: Aug | I34: =IF($F$9="Monthly",$F$10,0) -> 11100.29572 | J34: 194982.2445 | K34: 1413.621273
H35: Sep | I35: =IF($F$9="Monthly",$F$10,0) -> 11100.29572 | J35: 206082.5403 | K35: 1494.098417
H36: Oct | I36: =IF($F$9<>"Annual",$F$10,0) -> 11100.29572 | J36: 217182.836 | K36: 1574.575561
H37: Nov | I37: =IF($F$9="Monthly",$F$10,0) -> 11100.29572 | J37: 228283.1317 | K37: 1655.052705
H38: Dec | I38: =IF($F$9="Monthly",$F$10,0) -> 11100.29572 | J38: 239383.4274 | K38: 1735.529849
H39: Jan | I39: =IF(OR($F$9="Monthly",$F$9="Quarterly"),$F$10,0) -> 11100.29572 | J39: 250483.7232 | K39: 1816.006993
H40: Feb | I40: =IF($F$9="Monthly",$F$10,0) -> 11100.29572 | J40: 261584.0189 | K40: 1896.484137
H41: Mar | I41: =IF($F$9="Monthly",$F$10,0) -> 11100.29572 | J41: 272684.3146 | K41: 1976.961281
H42: Year End Balance | J42: =J41+SUM(K30:K41) -> 291096.3585
H44: Year 3
H45: Month | I45: Deposit | J45: Balance | K45: Interest
H46: Apr | I46: =$F$10 -> 11100.29572 | J46: =I46+J42 -> 302196.6542 | K46: =J46*$K$9/12 -> 2190.925743
H47: May | I47: =IF($F$9="Monthly",$F$10,0) -> 11100.29572 | J47: =I47+J46 -> 313296.9499 | K47: 2271.402887
H48: Jun | I48: =IF($F$9="Monthly",$F$10,0) -> 11100.29572 | J48: =I48+J47 -> 324397.2456 | K48: 2351.880031
H49: Jul | I49: =IF(OR($F$9="Monthly",$F$9="Quarterly"),$F$10,0) -> 11100.29572 | J49: 335497.5414 | K49: 2432.357175
H50: Aug | I50: =IF($F$9="Monthly",$F$10,0) -> 11100.29572 | J50: 346597.8371 | K50: 2512.834319
H51: Sep | I51: =IF($F$9="Monthly",$F$10,0) -> 11100.29572 | J51: 357698.1328 | K51: 2593.311463
H52: Oct | I52: =IF($F$9<>"Annual",$F$10,0) -> 11100.29572 | J52: 368798.4285 | K52: 2673.788607
H53: Nov | I53: =IF($F$9="Monthly",$F$10,0) -> 11100.29572 | J53: 379898.7243 | K53: 2754.265751
H54: Dec | I54: =IF($F$9="Monthly",$F$10,0) -> 11100.29572 | J54: 390999.02 | K54: 2834.742895
H55: Jan | I55: =IF(OR($F$9="Monthly",$F$9="Quarterly"),$F$10,0) -> 11100.29572 | J55: 402099.3157 | K55: 2915.220039
H56: Feb | I56: =IF($F$9="Monthly",$F$10,0) -> 11100.29572 | J56: 413199.6114 | K56: 2995.697183
H57: Mar | I57: =IF($F$9="Monthly",$F$10,0) -> 11100.29572 | J57: 424299.9072 | K57: 3076.174327
H58: Year End Balance | J58: =J57+SUM(K46:K57) -> 455902.5076
H60: Year 4
H61: Month | I61: Deposit | J61: Balance | K61: Interest
H62: Apr | I62: =$F$10 -> 11100.29572 | J62: =I62+J58 -> 467002.8033 | K62: =J62*$K$9/12 -> 3385.770324
H63: May | I63: =IF($F$9="Monthly",$F$10,0) -> 11100.29572 | J63: =I63+J62 -> 478103.099 | K63: 3466.247468
H64: Jun | I64: =IF($F$9="Monthly",$F$10,0) -> 11100.29572 | J64: =I64+J63 -> 489203.3948 | K64: 3546.724612
H65: Jul | I65: =IF(OR($F$9="Monthly",$F$9="Quarterly"),$F$10,0) -> 11100.29572 | J65: 500303.6905 | K65: 3627.201756
H66: Aug | I66: =IF($F$9="Monthly",$F$10,0) -> 11100.29572 | J66: 511403.9862 | K66: 3707.6789
H67: Sep | I67: =IF($F$9="Monthly",$F$10,0) -> 11100.29572 | J67: 522504.2819 | K67: 3788.156044
H68: Oct | I68: =IF($F$9<>"Annual",$F$10,0) -> 11100.29572 | J68: 533604.5777 | K68: 3868.633188
H69: Nov | I69: =IF($F$9="Monthly",$F$10,0) -> 11100.29572 | J69: 544704.8734 | K69: 3949.110332
H70: Dec | I70: =IF($F$9="Monthly",$F$10,0) -> 11100.29572 | J70: 555805.1691 | K70: 4029.587476
H71: Jan | I71: =IF(OR($F$9="Monthly",$F$9="Quarterly"),$F$10,0) -> 11100.29572 | J71: 566905.4648 | K71: 4110.06462
H72: Feb | I72: =IF($F$9="Monthly",$F$10,0) -> 11100.29572 | J72: 578005.7606 | K72: 4190.541764
H73: Mar | I73: =IF($F$9="Monthly",$F$10,0) -> 11100.29572 | J73: 589106.0563 | K73: 4271.018908
H74: Year End Balance | J74: =J73+SUM(K62:K73) -> 635046.7917
H76: Year 5
H77: Month | I77: Deposit | J77: Balance | K77: Interest
H78: Apr | I78: =$F$10 -> 11100.29572 | J78: =I78+J74 -> 646147.0874 | K78: =J78*$K$9/12 -> 4684.566384
H79: May | I79: =IF($F$9="Monthly",$F$10,0) -> 11100.29572 | J79: =I79+J78 -> 657247.3831 | K79: 4765.043528
H80: Jun | I80: =IF($F$9="Monthly",$F$10,0) -> 11100.29572 | J80: =I80+J79 -> 668347.6788 | K80: 4845.520672
H81: Jul | I81: =IF(OR($F$9="Monthly",$F$9="Quarterly"),$F$10,0) -> 11100.29572 | J81: 679447.9746 | K81: 4925.997816
H82: Aug | I82: =IF($F$9="Monthly",$F$10,0) -> 11100.29572 | J82: 690548.2703 | K82: 5006.47496
H83: Sep | I83: =IF($F$9="Monthly",$F$10,0) -> 11100.29572 | J83: 701648.566 | K83: 5086.952104
H84: Oct | I84: =IF($F$9<>"Annual",$F$10,0) -> 11100.29572 | J84: 712748.8617 | K84: 5167.429248
H85: Nov | I85: =IF($F$9="Monthly",$F$10,0) -> 11100.29572 | J85: 723849.1575 | K85: 5247.906392
H86: Dec | I86: =IF($F$9="Monthly",$F$10,0) -> 11100.29572 | J86: 734949.4532 | K86: 5328.383536
H87: Jan | I87: =IF(OR($F$9="Monthly",$F$9="Quarterly"),$F$10,0) -> 11100.29572 | J87: 746049.7489 | K87: 5408.86068
H88: Feb | I88: =IF($F$9="Monthly",$F$10,0) -> 11100.29572 | J88: 757150.0446 | K88: 5489.337824
H89: Mar | I89: =IF($F$9="Monthly",$F$10,0) -> 11100.29572 | J89: 768250.3404 | K89: 5569.814968
H90: Year End Balance | J90: =J89+SUM(K78:K89) -> 829776.6285
H92: Year 6
H93: Month | I93: Deposit | J93: Balance | K93: Interest
H94: Apr | I94: =$F$10 -> 11100.29572 | J94: =I94+J90 -> 840876.9242 | K94: =J94*$K$9/12 -> 6096.3577
H95: May | I95: =IF($F$9="Monthly",$F$10,0) -> 11100.29572 | J95: =I95+J94 -> 851977.2199 | K95: 6176.834844
H96: Jun | I96: =IF($F$9="Monthly",$F$10,0) -> 11100.29572 | J96: =I96+J95 -> 863077.5156 | K96: 6257.311988
H97: Jul | I97: =IF(OR($F$9="Monthly",$F$9="Quarterly"),$F$10,0) -> 11100.29572 | J97: 874177.8114 | K97: 6337.789132
H98: Aug | I98: =IF($F$9="Monthly",$F$10,0) -> 11100.29572 | J98: 885278.1071 | K98: 6418.266276
H99: Sep | I99: =IF($F$9="Monthly",$F$10,0) -> 11100.29572 | J99: 896378.4028 | K99: 6498.74342
H100: Oct | I100: =IF($F$9<>"Annual",$F$10,0) -> 11100.29572 | J100: 907478.6985 | K100: 6579.220564
H101: Nov | I101: =IF($F$9="Monthly",$F$10,0) -> 11100.29572 | J101: 918578.9943 | K101: 6659.697708
H102: Dec | I102: =IF($F$9="Monthly",$F$10,0) -> 11100.29572 | J102: 929679.29 | K102: 6740.174852
H103: Jan | I103: =IF(OR($F$9="Monthly",$F$9="Quarterly"),$F$10,0) -> 11100.29572 | J103: 940779.5857 | K103: 6820.651996
H104: Feb | I104: =IF($F$9="Monthly",$F$10,0) -> 11100.29572 | J104: 951879.8814 | K104: 6901.12914
H105: Mar | I105: =IF($F$9="Monthly",$F$10,0) -> 11100.29572 | J105: 962980.1772 | K105: 6981.606284
H106: Year End Balance | J106: =J105+SUM(K94:K105) -> 1041447.961
H108: Year 7
H109: Month | I109: Deposit | J109: Balance | K109: Interest
H110: Apr | I110: =$F$10 -> 11100.29572 | J110: =I110+J106 -> 1052548.257 | K110: =J110*$K$9/12 -> 7630.974862
H111: May | I111: =IF($F$9="Monthly",$F$10,0) -> 11100.29572 | J111: =I111+J110 -> 1063648.553 | K111: 7711.452006
H112: Jun | I112: =IF($F$9="Monthly",$F$10,0) -> 11100.29572 | J112: =I112+J111 -> 1074748.848 | K112: 7791.92915
H113: Jul | I113: =IF(OR($F$9="Monthly",$F$9="Quarterly"),$F$10,0) -> 11100.29572 | J113: 1085849.144 | K113: 7872.406294
H114: Aug | I114: =IF($F$9="Monthly",$F$10,0) -> 11100.29572 | J114: 1096949.44 | K114: 7952.883438
H115: Sep | I115: =IF($F$9="Monthly",$F$10,0) -> 11100.29572 | J115: 1108049.735 | K115: 8033.360582
H116: Oct | I116: =IF($F$9<>"Annual",$F$10,0) -> 11100.29572 | J116: 1119150.031 | K116: 8113.837726
H117: Nov | I117: =IF($F$9="Monthly",$F$10,0) -> 11100.29572 | J117: 1130250.327 | K117: 8194.31487
H118: Dec | I118: =IF($F$9="Monthly",$F$10,0) -> 11100.29572 | J118: 1141350.623 | K118: 8274.792014
H119: Jan | I119: =IF(OR($F$9="Monthly",$F$9="Quarterly"),$F$10,0) -> 11100.29572 | J119: 1152450.918 | K119: 8355.269158
H120: Feb | I120: =IF($F$9="Monthly",$F$10,0) -> 11100.29572 | J120: 1163551.214 | K120: 8435.746302
H121: Mar | I121: =IF($F$9="Monthly",$F$10,0) -> 11100.29572 | J121: 1174651.51 | K121: 8516.223446
H122: Year End Balance | J122: =J121+SUM(K110:K121) -> 1271534.7
H124: Year 8
H125: Month | I125: Deposit | J125: Balance | K125: Interest
H126: Apr | I126: =$F$10 -> 11100.29572 | J126: =I126+J122 -> 1282634.995 | K126: =J126*$K$9/12 -> 9299.103716
H127: May | I127: =IF($F$9="Monthly",$F$10,0) -> 11100.29572 | J127: =I127+J126 -> 1293735.291 | K127: 9379.58086
H128: Jun | I128: =IF($F$9="Monthly",$F$10,0) -> 11100.29572 | J128: =I128+J127 -> 1304835.587 | K128: 9460.058004
H129: Jul | I129: =IF(OR($F$9="Monthly",$F$9="Quarterly"),$F$10,0) -> 11100.29572 | J129: 1315935.882 | K129: 9540.535148
H130: Aug | I130: =IF($F$9="Monthly",$F$10,0) -> 11100.29572 | J130: 1327036.178 | K130: 9621.012292
H131: Sep | I131: =IF($F$9="Monthly",$F$10,0) -> 11100.29572 | J131: 1338136.474 | K131: 9701.489436
H132: Oct | I132: =IF($F$9<>"Annual",$F$10,0) -> 11100.29572 | J132: 1349236.77 | K132: 9781.96658
H133: Nov | I133: =IF($F$9="Monthly",$F$10,0) -> 11100.29572 | J133: 1360337.065 | K133: 9862.443724
H134: Dec | I134: =IF($F$9="Monthly",$F$10,0) -> 11100.29572 | J134: 1371437.361 | K134: 9942.920868
H135: Jan | I135: =IF(OR($F$9="Monthly",$F$9="Quarterly"),$F$10,0) -> 11100.29572 | J135: 1382537.657 | K135: 10023.39801
H136: Feb | I136: =IF($F$9="Monthly",$F$10,0) -> 11100.29572 | J136: 1393637.953 | K136: 10103.87516
H137: Mar | I137: =IF($F$9="Monthly",$F$10,0) -> 11100.29572 | J137: 1404738.248 | K137: 10184.3523
H138: Year End Balance | J138: =J137+SUM(K126:K137) -> 1521638.984
H140: Year 9
H141: Month | I141: Deposit | J141: Balance | K141: Interest
H142: Apr | I142: =$F$10 -> 11100.29572 | J142: =I142+J138 -> 1532739.28 | K142: =J142*$K$9/12 -> 11112.35978
H143: May | I143: =IF($F$9="Monthly",$F$10,0) -> 11100.29572 | J143: =I143+J142 -> 1543839.576 | K143: 11192.83692
H144: Jun | I144: =IF($F$9="Monthly",$F$10,0) -> 11100.29572 | J144: =I144+J143 -> 1554939.872 | K144: 11273.31407
H145: Jul | I145: =IF(OR($F$9="Monthly",$F$9="Quarterly"),$F$10,0) -> 11100.29572 | J145: 1566040.167 | K145: 11353.79121
H146: Aug | I146: =IF($F$9="Monthly",$F$10,0) -> 11100.29572 | J146: 1577140.463 | K146: 11434.26836
H147: Sep | I147: =IF($F$9="Monthly",$F$10,0) -> 11100.29572 | J147: 1588240.759 | K147: 11514.7455
H148: Oct | I148: =IF($F$9<>"Annual",$F$10,0) -> 11100.29572 | J148: 1599341.054 | K148: 11595.22264
H149: Nov | I149: =IF($F$9="Monthly",$F$10,0) -> 11100.29572 | J149: 1610441.35 | K149: 11675.69979
H150: Dec | I150: =IF($F$9="Monthly",$F$10,0) -> 11100.29572 | J150: 1621541.646 | K150: 11756.17693
H151: Jan | I151: =IF(OR($F$9="Monthly",$F$9="Quarterly"),$F$10,0) -> 11100.29572 | J151: 1632641.942 | K151: 11836.65408
H152: Feb | I152: =IF($F$9="Monthly",$F$10,0) -> 11100.29572 | J152: 1643742.237 | K152: 11917.13122
H153: Mar | I153: =IF($F$9="Monthly",$F$10,0) -> 11100.29572 | J153: 1654842.533 | K153: 11997.60836
H154: Year End Balance | J154: =J153+SUM(K142:K153) -> 1793502.342
H156: Year 10
H157: Month | I157: Deposit | J157: Balance | K157: Interest
H158: Apr | I158: =$F$10 -> 11100.29572 | J158: =I158+J154 -> 1804602.638 | K158: =J158*$K$9/12 -> 13083.36912
H159: May | I159: =IF($F$9="Monthly",$F$10,0) -> 11100.29572 | J159: =I159+J158 -> 1815702.933 | K159: 13163.84627
H160: Jun | I160: =IF($F$9="Monthly",$F$10,0) -> 11100.29572 | J160: =I160+J159 -> 1826803.229 | K160: 13244.32341
H161: Jul | I161: =IF(OR($F$9="Monthly",$F$9="Quarterly"),$F$10,0) -> 11100.29572 | J161: 1837903.525 | K161: 13324.80056
H162: Aug | I162: =IF($F$9="Monthly",$F$10,0) -> 11100.29572 | J162: 1849003.821 | K162: 13405.2777
H163: Sep | I163: =IF($F$9="Monthly",$F$10,0) -> 11100.29572 | J163: 1860104.116 | K163: 13485.75484
H164: Oct | I164: =IF($F$9<>"Annual",$F$10,0) -> 11100.29572 | J164: 1871204.412 | K164: 13566.23199
H165: Nov | I165: =IF($F$9="Monthly",$F$10,0) -> 11100.29572 | J165: 1882304.708 | K165: 13646.70913
H166: Dec | I166: =IF($F$9="Monthly",$F$10,0) -> 11100.29572 | J166: 1893405.003 | K166: 13727.18628
H167: Jan | I167: =IF(OR($F$9="Monthly",$F$9="Quarterly"),$F$10,0) -> 11100.29572 | J167: 1904505.299 | K167: 13807.66342
H168: Feb | I168: =IF($F$9="Monthly",$F$10,0) -> 11100.29572 | J168: 1915605.595 | K168: 13888.14056
H169: Mar | I169: =IF($F$9="Monthly",$F$10,0) -> 11100.29572 | J169: 1926705.891 | K169: 13968.61771
H170: Year End Balance | J170: =J169+SUM(K158:K169) -> 2089017.812
H172: Year 11
H173: Month | I173: Deposit | J173: Balance | K173: Interest
H174: Apr | I174: =$F$10 -> 11100.29572 | J174: =I174+J170 -> 2100118.107 | K174: =J174*$K$9/12 -> 15225.85628
H175: May | I175: =IF($F$9="Monthly",$F$10,0) -> 11100.29572 | J175: =I175+J174 -> 2111218.403 | K175: 15306.33342
H176: Jun | I176: =IF($F$9="Monthly",$F$10,0) -> 11100.29572 | J176: =I176+J175 -> 2122318.699 | K176: 15386.81057
H177: Jul | I177: =IF(OR($F$9="Monthly",$F$9="Quarterly"),$F$10,0) -> 11100.29572 | J177: 2133418.995 | K177: 15467.28771
H178: Aug | I178: =IF($F$9="Monthly",$F$10,0) -> 11100.29572 | J178: 2144519.29 | K178: 15547.76485
H179: Sep | I179: =IF($F$9="Monthly",$F$10,0) -> 11100.29572 | J179: 2155619.586 | K179: 15628.242
H180: Oct | I180: =IF($F$9<>"Annual",$F$10,0) -> 11100.29572 | J180: 2166719.882 | K180: 15708.71914
H181: Nov | I181: =IF($F$9="Monthly",$F$10,0) -> 11100.29572 | J181: 2177820.177 | K181: 15789.19629
H182: Dec | I182: =IF($F$9="Monthly",$F$10,0) -> 11100.29572 | J182: 2188920.473 | K182: 15869.67343
H183: Jan | I183: =IF(OR($F$9="Monthly",$F$9="Quarterly"),$F$10,0) -> 11100.29572 | J183: 2200020.769 | K183: 15950.15057
H184: Feb | I184: =IF($F$9="Monthly",$F$10,0) -> 11100.29572 | J184: 2211121.065 | K184: 16030.62772
H185: Mar | I185: =IF($F$9="Monthly",$F$10,0) -> 11100.29572 | J185: 2222221.36 | K185: 16111.10486
H186: Year End Balance | J186: =J185+SUM(K174:K185) -> 2410243.127
H188: Year 12
H189: Month | I189: Deposit | J189: Balance | K189: Interest
H190: Apr | I190: =$F$10 -> 11100.29572 | J190: =I190+J186 -> 2421343.423 | K190: =J190*$K$9/12 -> 17554.73982
H191: May | I191: =IF($F$9="Monthly",$F$10,0) -> 11100.29572 | J191: =I191+J190 -> 2432443.719 | K191: 17635.21696
H192: Jun | I192: =IF($F$9="Monthly",$F$10,0) -> 11100.29572 | J192: =I192+J191 -> 2443544.014 | K192: 17715.6941
H193: Jul | I193: =IF(OR($F$9="Monthly",$F$9="Quarterly"),$F$10,0) -> 11100.29572 | J193: 2454644.31 | K193: 17796.17125
H194: Aug | I194: =IF($F$9="Monthly",$F$10,0) -> 11100.29572 | J194: 2465744.606 | K194: 17876.64839
H195: Sep | I195: =IF($F$9="Monthly",$F$10,0) -> 11100.29572 | J195: 2476844.901 | K195: 17957.12554
H196: Oct | I196: =IF($F$9<>"Annual",$F$10,0) -> 11100.29572 | J196: 2487945.197 | K196: 18037.60268
H197: Nov | I197: =IF($F$9="Monthly",$F$10,0) -> 11100.29572 | J197: 2499045.493 | K197: 18118.07982
H198: Dec | I198: =IF($F$9="Monthly",$F$10,0) -> 11100.29572 | J198: 2510145.789 | K198: 18198.55697
H199: Jan | I199: =IF(OR($F$9="Monthly",$F$9="Quarterly"),$F$10,0) -> 11100.29572 | J199: 2521246.084 | K199: 18279.03411
H200: Feb | I200: =IF($F$9="Monthly",$F$10,0) -> 11100.29572 | J200: 2532346.38 | K200: 18359.51126
H201: Mar | I201: =IF($F$9="Monthly",$F$10,0) -> 11100.29572 | J201: 2543446.676 | K201: 18439.9884
H202: Year End Balance | J202: =J201+SUM(K190:K201) -> 2759415.045
H204: Year 13
H205: Month | I205: Deposit | J205: Balance | K205: Interest
H206: Apr | I206: =$F$10 -> 11100.29572 | J206: =I206+J202 -> 2770515.341 | K206: =J206*$K$9/12 -> 20086.23622
H207: May | I207: =IF($F$9="Monthly",$F$10,0) -> 11100.29572 | J207: =I207+J206 -> 2781615.637 | K207: 20166.71337
H208: Jun | I208: =IF($F$9="Monthly",$F$10,0) -> 11100.29572 | J208: =I208+J207 -> 2792715.932 | K208: 20247.19051
H209: Jul | I209: =IF(OR($F$9="Monthly",$F$9="Quarterly"),$F$10,0) -> 11100.29572 | J209: 2803816.228 | K209: 20327.66765
H210: Aug | I210: =IF($F$9="Monthly",$F$10,0) -> 11100.29572 | J210: 2814916.524 | K210: 20408.1448
H211: Sep | I211: =IF($F$9="Monthly",$F$10,0) -> 11100.29572 | J211: 2826016.819 | K211: 20488.62194
H212: Oct | I212: =IF($F$9<>"Annual",$F$10,0) -> 11100.29572 | J212: 2837117.115 | K212: 20569.09909
H213: Nov | I213: =IF($F$9="Monthly",$F$10,0) -> 11100.29572 | J213: 2848217.411 | K213: 20649.57623
H214: Dec | I214: =IF($F$9="Monthly",$F$10,0) -> 11100.29572 | J214: 2859317.707 | K214: 20730.05337
H215: Jan | I215: =IF(OR($F$9="Monthly",$F$9="Quarterly"),$F$10,0) -> 11100.29572 | J215: 2870418.002 | K215: 20810.53052
H216: Feb | I216: =IF($F$9="Monthly",$F$10,0) -> 11100.29572 | J216: 2881518.298 | K216: 20891.00766
H217: Mar | I217: =IF($F$9="Monthly",$F$10,0) -> 11100.29572 | J217: 2892618.594 | K217: 20971.48481
... 31 more rows

Sheet Goal Calculator
A1: Goal Calculator | L1: ='PPF Calculator'!F9 -> Monthly | N1: Monthly | O1: 12
A2: Determine the fixed investment need to obtain a certina maturity value | L2: =INDEX(N1:O4,MATCH(L1,N1:N4,0),2) -> 12 | N2: Quarterly | O2: 4
N3: Half-yearly | O3: 2
A4: Step 1 | B4: Enter maturity value required | E4: 4000000 | F4: Enter current investment limit | I4: 150000 | N4: Annual | O4: 1
A6: Step 2 | B6: Go to PPF Calculator sheet. Select investment frequency and the interest rate
A8: Step 3
A11: Fixed investment amount for the selected is | F11: 11100.29572
A12: =IF(F11*L2>I4, "Answer is above investment limit. Choose lower maturity value and repeat step 3","") -> 

Sheet PPF Tracker
AD1: before 5th
D2: PPF Tracker | AD2: after 5th
J4: Note: The tracker assumes that the same interest rate is applicable throughout the financial year
E5: Enter data only in green cells | J5: In F.Y.2011-12,2 interest rates were applicable-8% till November 2011 and 8.6% after that.
J6: You will need to make suitable modifications in the interest column cells to reflect this
J7: Send me an email if you need help with this
J8: Balance on March 31st of current year
J9: Set as zero for new accounts
E12: * For existing account, "Year 1" | J12: Year 1*
E13: simply refers to first year of tracking | H13: Deposited | J13: Month | K13: Deposit | L13: Balance | M13: Interest | P13: PPF Interest Rate
H14: before 5th | J14: Apr | K14: 5000 | L14: =$M$9+IF(H14="before 5th",K14,0) -> 5000 | M14: =L14*$P$14/12 -> 36.25 | P14: 0.087
H15: before 5th | J15: May | K15: 5000 | L15: =SUM($K$14:K14)+$M$9+IF(H15="before 5th",K15,0) -> 10000 | M15: =L15*$P$14/12 -> 72.5 | P15: PPF investment limit
H16: before 5th | J16: Jun | K16: 5000 | L16: =SUM($K$14:K15)+$M$9+IF(H16="before 5th",K16,0) -> 15000 | M16: 108.75 | P16: 150000
H17: before 5th | J17: Jul | K17: 5000 | L17: =SUM($K$14:K16)+$M$9+IF(H17="before 5th",K17,0) -> 20000 | M17: 145 | P17: =IF(SUM(K14:K25)>P16,"Warning: total investment exceeds allowed limit","") -> 
H18: before 5th | J18: Aug | K18: 5000 | L18: =SUM($K$14:K17)+$M$9+IF(H18="before 5th",K18,0) -> 25000 | M18: 181.25
H19: before 5th | J19: Sep | K19: 5000 | L19: =SUM($K$14:K18)+$M$9+IF(H19="before 5th",K19,0) -> 30000 | M19: 217.5
H20: before 5th | J20: Oct | K20: 5000 | L20: =SUM($K$14:K19)+$M$9+IF(H20="before 5th",K20,0) -> 35000 | M20: 253.75
H21: before 5th | J21: Nov | K21: 5000 | L21: =SUM($K$14:K20)+$M$9+IF(H21="before 5th",K21,0) -> 40000 | M21: 290
H22: before 5th | J22: Dec | K22: 5000 | L22: =SUM($K$14:K21)+$M$9+IF(H22="before 5th",K22,0) -> 45000 | M22: 326.25
H23: before 5th | J23: Jan | K23: 5000 | L23: =SUM($K$14:K22)+$M$9+IF(H23="before 5th",K23,0) -> 50000 | M23: 362.5
H24: before 5th | J24: Feb | K24: 5000 | L24: =SUM($K$14:K23)+$M$9+IF(H24="before 5th",K24,0) -> 55000 | M24: 398.75
H25: before 5th | J25: Mar | K25: 5000 | L25: =SUM($K$14:K24)+$M$9+IF(H25="before 5th",K25,0) -> 60000 | M25: 435
J26: Year End Balance | L26: =SUM(K14:K25)+SUM(M14:M25)+M9 -> 62827.5
J28: Year 2
H29: Deposited | J29: Month | K29: Deposit | L29: Balance | M29: Interest | P29: PPF Interest Rate
H30: before 5th | J30: Apr | K30: 5000 | L30: =$L$26+IF(H30="before 5th",K30,0) -> 67827.5 | M30: =L30*$P$30/12 -> 491.749375 | P30: 0.087
H31: before 5th | J31: May | K31: 5000 | L31: =SUM($K$30:K30)+$L$26+IF(H31="before 5th",K31,0) -> 72827.5 | M31: =L31*$P$30/12 -> 527.999375 | P31: PPF investment limit
H32: before 5th | J32: Jun | K32: 5000 | L32: =SUM($K$30:K31)+$L$26+IF(H32="before 5th",K32,0) -> 77827.5 | M32: 564.249375 | P32: 150000
H33: before 5th | J33: Jul | K33: 5000 | L33: =SUM($K$30:K32)+$L$26+IF(H33="before 5th",K33,0) -> 82827.5 | M33: 600.499375 | P33: =IF(SUM(K30:K41)>P32,"Warning: total investment exceeds allowed limit","") -> 
H34: before 5th | J34: Aug | K34: 5000 | L34: =SUM($K$30:K33)+$L$26+IF(H34="before 5th",K34,0) -> 87827.5 | M34: 636.749375
H35: before 5th | J35: Sep | K35: 5000 | L35: =SUM($K$30:K34)+$L$26+IF(H35="before 5th",K35,0) -> 92827.5 | M35: 672.999375
H36: before 5th | J36: Oct | K36: 5000 | L36: =SUM($K$30:K35)+$L$26+IF(H36="before 5th",K36,0) -> 97827.5 | M36: 709.249375
H37: before 5th | J37: Nov | K37: 5000 | L37: =SUM($K$30:K36)+$L$26+IF(H37="before 5th",K37,0) -> 102827.5 | M37: 745.499375
H38: before 5th | J38: Dec | K38: 5000 | L38: =SUM($K$30:K37)+$L$26+IF(H38="before 5th",K38,0) -> 107827.5 | M38: 781.749375
H39: before 5th | J39: Jan | K39: 5000 | L39: =SUM($K$30:K38)+$L$26+IF(H39="before 5th",K39,0) -> 112827.5 | M39: 817.999375
H40: before 5th | J40: Feb | K40: 5000 | L40: =SUM($K$30:K39)+$L$26+IF(H40="before 5th",K40,0) -> 117827.5 | M40: 854.249375
H41: before 5th | J41: Mar | K41: 5000 | L41: =SUM($K$30:K40)+$L$26+IF(H41="before 5th",K41,0) -> 122827.5 | M41: 890.499375
J42: Year End Balance | L42: =SUM(K30:K41)+SUM(M30:M41)+L26 -> 131120.9925
D44: =IF($M$9=0,"Loan available for new accounts","") -> Loan available for new accounts | J44: Year 3
D45: =IF($M$9=0,"Loan amount available","") -> Loan amount available | F45: =IF($M$9=0,25%*L26,"") -> 15706.875 | H45: Deposited | J45: Month | K45: Deposit | L45: Balance | M45: Interest | P45: PPF Interest Rate
H46: before 5th | J46: Apr | K46: 5000 | L46: =$L$42+IF(H46="before 5th",K46,0) -> 136120.9925 | M46: =L46*$P$46/12 -> 986.8771956 | P46: 0.087
H47: before 5th | J47: May | K47: 5000 | L47: =SUM($K$46:K46)+$L$42+IF(H47="before 5th",K47,0) -> 141120.9925 | M47: =L47*$P$46/12 -> 1023.127196 | P47: PPF investment limit
H48: before 5th | J48: Jun | K48: 5000 | L48: =SUM($K$46:K47)+$L$42+IF(H48="before 5th",K48,0) -> 146120.9925 | M48: 1059.377196 | P48: 150000
H49: before 5th | J49: Jul | K49: 5000 | L49: =SUM($K$46:K48)+$L$42+IF(H49="before 5th",K49,0) -> 151120.9925 | M49: 1095.627196 | P49: =IF(SUM(K46:K57)>P48,"Warning: total investment exceeds allowed limit","") -> 
H50: before 5th | J50: Aug | K50: 5000 | L50: =SUM($K$46:K49)+$L$42+IF(H50="before 5th",K50,0) -> 156120.9925 | M50: 1131.877196
H51: before 5th | J51: Sep | K51: 5000 | L51: =SUM($K$46:K50)+$L$42+IF(H51="before 5th",K51,0) -> 161120.9925 | M51: 1168.127196
H52: before 5th | J52: Oct | K52: 5000 | L52: =SUM($K$46:K51)+$L$42+IF(H52="before 5th",K52,0) -> 166120.9925 | M52: 1204.377196
H53: before 5th | J53: Nov | K53: 5000 | L53: =SUM($K$46:K52)+$L$42+IF(H53="before 5th",K53,0) -> 171120.9925 | M53: 1240.627196
H54: before 5th | J54: Dec | K54: 5000 | L54: =SUM($K$46:K53)+$L$42+IF(H54="before 5th",K54,0) -> 176120.9925 | M54: 1276.877196
H55: before 5th | J55: Jan | K55: 5000 | L55: =SUM($K$46:K54)+$L$42+IF(H55="before 5th",K55,0) -> 181120.9925 | M55: 1313.127196
H56: before 5th | J56: Feb | K56: 5000 | L56: =SUM($K$46:K55)+$L$42+IF(H56="before 5th",K56,0) -> 186120.9925 | M56: 1349.377196
H57: before 5th | J57: Mar | K57: 5000 | L57: =SUM($K$46:K56)+$L$42+IF(H57="before 5th",K57,0) -> 191120.9925 | M57: 1385.627196
J58: Year End Balance | L58: =SUM(K46:K57)+SUM(M46:M57)+L42 -> 205356.0188
D60: =IF($M$9=0,"Loan available for new accounts","") -> Loan available for new accounts | J60: Year 4
D61: =IF($M$9=0,"Loan amount available","") -> Loan amount available | F61: =IF($M$9=0,25%*L42,"") -> 32780.24812 | H61: Deposited | J61: Month | K61: Deposit | L61: Balance | M61: Interest | P61: PPF Interest Rate
H62: before 5th | J62: Apr | K62: 5000 | L62: =$L$58+IF(H62="before 5th",K62,0) -> 210356.0188 | M62: =L62*$P$62/12 -> 1525.081137 | P62: 0.087
H63: before 5th | J63: May | K63: 5000 | L63: =SUM($K$62:K62)+$L$58+IF(H63="before 5th",K63,0) -> 215356.0188 | M63: =L63*$P$62/12 -> 1561.331137 | P63: PPF investment limit
H64: before 5th | J64: Jun | K64: 5000 | L64: =SUM($K$62:K63)+$L$58+IF(H64="before 5th",K64,0) -> 220356.0188 | M64: 1597.581137 | P64: 150000
H65: before 5th | J65: Jul | K65: 5000 | L65: =SUM($K$62:K64)+$L$58+IF(H65="before 5th",K65,0) -> 225356.0188 | M65: 1633.831137 | P65: =IF(SUM(K62:K73)>P64,"Warning: total investment exceeds allowed limit","") -> 
H66: before 5th | J66: Aug | K66: 5000 | L66: =SUM($K$62:K65)+$L$58+IF(H66="before 5th",K66,0) -> 230356.0188 | M66: 1670.081137
H67: before 5th | J67: Sep | K67: 5000 | L67: =SUM($K$62:K66)+$L$58+IF(H67="before 5th",K67,0) -> 235356.0188 | M67: 1706.331137
H68: before 5th | J68: Oct | K68: 5000 | L68: =SUM($K$62:K67)+$L$58+IF(H68="before 5th",K68,0) -> 240356.0188 | M68: 1742.581137
H69: before 5th | J69: Nov | K69: 5000 | L69: =SUM($K$62:K68)+$L$58+IF(H69="before 5th",K69,0) -> 245356.0188 | M69: 1778.831137
H70: before 5th | J70: Dec | K70: 5000 | L70: =SUM($K$62:K69)+$L$58+IF(H70="before 5th",K70,0) -> 250356.0188 | M70: 1815.081137
H71: before 5th | J71: Jan | K71: 5000 | L71: =SUM($K$62:K70)+$L$58+IF(H71="before 5th",K71,0) -> 255356.0188 | M71: 1851.331137
H72: before 5th | J72: Feb | K72: 5000 | L72: =SUM($K$62:K71)+$L$58+IF(H72="before 5th",K72,0) -> 260356.0188 | M72: 1887.581137
H73: before 5th | J73: Mar | K73: 5000 | L73: =SUM($K$62:K72)+$L$58+IF(H73="before 5th",K73,0) -> 265356.0188 | M73: 1923.831137
J74: Year End Balance | L74: =SUM(K62:K73)+SUM(M62:M73)+L58 -> 286049.4925
D76: =IF($M$9=0,"Loan available for new accounts","") -> Loan available for new accounts | J76: Year 5
D77: =IF($M$9=0,"Loan amount available","") -> Loan amount available | F77: =IF($M$9=0,25%*L58,"") -> 51339.00471 | H77: Deposited | J77: Month | K77: Deposit | L77: Balance | M77: Interest | P77: PPF Interest Rate
H78: before 5th | J78: Apr | K78: 5000 | L78: =$L$74+IF(H78="before 5th",K78,0) -> 291049.4925 | M78: =L78*$P$78/12 -> 2110.108821 | P78: 0.087
H79: before 5th | J79: May | K79: 5000 | L79: =SUM($K$78:K78)+$L$74+IF(H79="before 5th",K79,0) -> 296049.4925 | M79: =L79*$P$78/12 -> 2146.358821 | P79: PPF investment limit
H80: before 5th | J80: Jun | K80: 5000 | L80: =SUM($K$78:K79)+$L$74+IF(H80="before 5th",K80,0) -> 301049.4925 | M80: 2182.608821 | P80: 150000
H81: before 5th | J81: Jul | K81: 5000 | L81: =SUM($K$78:K80)+$L$74+IF(H81="before 5th",K81,0) -> 306049.4925 | M81: 2218.858821 | P81: =IF(SUM(K78:K89)>P80,"Warning: total investment exceeds allowed limit","") -> 
H82: before 5th | J82: Aug | K82: 5000 | L82: =SUM($K$78:K81)+$L$74+IF(H82="before 5th",K82,0) -> 311049.4925 | M82: 2255.108821
H83: before 5th | J83: Sep | K83: 5000 | L83: =SUM($K$78:K82)+$L$74+IF(H83="before 5th",K83,0) -> 316049.4925 | M83: 2291.358821
H84: before 5th | J84: Oct | K84: 5000 | L84: =SUM($K$78:K83)+$L$74+IF(H84="before 5th",K84,0) -> 321049.4925 | M84: 2327.608821
H85: before 5th | J85: Nov | K85: 5000 | L85: =SUM($K$78:K84)+$L$74+IF(H85="before 5th",K85,0) -> 326049.4925 | M85: 2363.858821
H86: before 5th | J86: Dec | K86: 5000 | L86: =SUM($K$78:K85)+$L$74+IF(H86="before 5th",K86,0) -> 331049.4925 | M86: 2400.108821
H87: before 5th | J87: Jan | K87: 5000 | L87: =SUM($K$78:K86)+$L$74+IF(H87="before 5th",K87,0) -> 336049.4925 | M87: 2436.358821
H88: before 5th | J88: Feb | K88: 5000 | L88: =SUM($K$78:K87)+$L$74+IF(H88="before 5th",K88,0) -> 341049.4925 | M88: 2472.608821
H89: before 5th | J89: Mar | K89: 5000 | L89: =SUM($K$78:K88)+$L$74+IF(H89="before 5th",K89,0) -> 346049.4925 | M89: 2508.858821
J90: Year End Balance | L90: =SUM(K78:K89)+SUM(M78:M89)+L74 -> 373763.2983
D92: =IF($M$9=0,"Loan available for new accounts","") -> Loan available for new accounts | J92: Year 6
D93: =IF($M$9=0,"Loan amount available","") -> Loan amount available | F93: =IF($M$9=0,25%*L74,"") -> 71512.37312 | H93: Deposited | J93: Month | K93: Deposit | L93: Balance | M93: Interest | P93: PPF Interest Rate
H94: before 5th | J94: Apr | K94: 5000 | L94: =$L$90+IF(H94="before 5th",K94,0) -> 378763.2983 | M94: =L94*$P$94/12 -> 2746.033913 | P94: 0.087
H95: before 5th | J95: May | K95: 5000 | L95: =SUM($K$94:K94)+$L$90+IF(H95="before 5th",K95,0) -> 383763.2983 | M95: =L95*$P$94/12 -> 2782.283913 | P95: PPF investment limit
H96: before 5th | J96: Jun | K96: 5000 | L96: =SUM($K$94:K95)+$L$90+IF(H96="before 5th",K96,0) -> 388763.2983 | M96: 2818.533913 | P96: 150000
H97: before 5th | J97: Jul | K97: 5000 | L97: =SUM($K$94:K96)+$L$90+IF(H97="before 5th",K97,0) -> 393763.2983 | M97: 2854.783913 | P97: =IF(SUM(K94:K105)>P96,"Warning: total investment exceeds allowed limit","") -> 
H98: before 5th | J98: Aug | K98: 5000 | L98: =SUM($K$94:K97)+$L$90+IF(H98="before 5th",K98,0) -> 398763.2983 | M98: 2891.033913
H99: before 5th | J99: Sep | K99: 5000 | L99: =SUM($K$94:K98)+$L$90+IF(H99="before 5th",K99,0) -> 403763.2983 | M99: 2927.283913
H100: before 5th | J100: Oct | K100: 5000 | L100: =SUM($K$94:K99)+$L$90+IF(H100="before 5th",K100,0) -> 408763.2983 | M100: 2963.533913
H101: before 5th | J101: Nov | K101: 5000 | L101: =SUM($K$94:K100)+$L$90+IF(H101="before 5th",K101,0) -> 413763.2983 | M101: 2999.783913
H102: before 5th | J102: Dec | K102: 5000 | L102: =SUM($K$94:K101)+$L$90+IF(H102="before 5th",K102,0) -> 418763.2983 | M102: 3036.033913
H103: before 5th | J103: Jan | K103: 5000 | L103: =SUM($K$94:K102)+$L$90+IF(H103="before 5th",K103,0) -> 423763.2983 | M103: 3072.283913
H104: before 5th | J104: Feb | K104: 5000 | L104: =SUM($K$94:K103)+$L$90+IF(H104="before 5th",K104,0) -> 428763.2983 | M104: 3108.533913
H105: before 5th | J105: Mar | K105: 5000 | L105: =SUM($K$94:K104)+$L$90+IF(H105="before 5th",K105,0) -> 433763.2983 | M105: 3144.783913
J106: Year End Balance | L106: =SUM(K94:K105)+SUM(M94:M105)+L90 -> 469108.2053
J108: Year 7 | O108: Withdrawal can be made only once in a year
H109: Deposited | J109: Month | K109: Deposit | L109: Balance | M109: Interest | O109: Withdrawal | P109: PPF Interest Rate
H110: before 5th | J110: Apr | K110: 5000 | L110: =$L$106+IF(H110="before 5th",K110,0) -> 474108.2053 | M110: =L110*$P$110/12 -> 3437.284488 | N110: =IF(O110=MAX($O$110:$O$121),O110,IF(N109=MAX($O$110:$O$121),N109,0)) -> 0 | P110: 0.087
D111: =IF($M$9=0,"Withdrawal limit","") -> Withdrawal limit | F111: =IF($M$9=0,50%*MIN(L106,L58),"") -> 102678.0094 | H111: before 5th | J111: May | K111: 5000 | L111: =SUM($K$110:K110)+$L$106+IF(H111="before 5th",K111,0) -> 479108.2053 | M111: =L111*$P$110/12 -> 3473.534488 | N111: 0 | P111: PPF investment limit
H112: before 5th | J112: Jun | K112: 5000 | L112: =SUM($K$110:K111)+$L$106+IF(H112="before 5th",K112,0) -> 484108.2053 | M112: 3509.784488 | N112: 0 | P112: 150000
H113: before 5th | J113: Jul | K113: 5000 | L113: =SUM($K$110:K112)+$L$106+IF(H113="before 5th",K113,0) -> 489108.2053 | M113: 3546.034488 | N113: 0 | P113: =IF(SUM(K110:K121)>P112,"Warning: total investment exceeds allowed limit","") -> 
H114: before 5th | J114: Aug | K114: 5000 | L114: =SUM($K$110:K113)+$L$106+IF(H114="before 5th",K114,0) -> 494108.2053 | M114: 3582.284488 | N114: 0
H115: before 5th | J115: Sep | K115: 5000 | L115: =SUM($K$110:K114)+$L$106+IF(H115="before 5th",K115,0) -> 499108.2053 | M115: 3618.534488 | N115: 0 | P115: =IF(N122>F111,"Withdrawal is above limit","") -> 
H116: before 5th | J116: Oct | K116: 5000 | L116: =SUM($K$110:K115)+$L$106+IF(H116="before 5th",K116,0) -> 504108.2053 | M116: 3654.784488 | N116: =IF(O116=MAX($O$110:$O$121),O116,IF(N115=MAX($O$110:$O$121),N115,0)) -> 0
H117: before 5th | J117: Nov | K117: 5000 | L117: =SUM($K$110:K116)+$L$106+IF(H117="before 5th",K117,0) -> 509108.2053 | M117: 3691.034488 | N117: 0
H118: before 5th | J118: Dec | K118: 5000 | L118: =SUM($K$110:K117)+$L$106+IF(H118="before 5th",K118,0) -> 514108.2053 | M118: 3727.284488 | N118: 0
H119: before 5th | J119: Jan | K119: 5000 | L119: =SUM($K$110:K118)+$L$106+IF(H119="before 5th",K119,0) -> 519108.2053 | M119: 3763.534488 | N119: 0
H120: before 5th | J120: Feb | K120: 5000 | L120: =SUM($K$110:K119)+$L$106+IF(H120="before 5th",K120,0) -> 524108.2053 | M120: 3799.784488 | N120: 0
H121: before 5th | J121: Mar | K121: 5000 | L121: =SUM($K$110:K120)+$L$106+IF(H121="before 5th",K121,0) -> 529108.2053 | M121: 3836.034488 | N121: 0
J122: Year End Balance | L122: =SUM(K110:K121)+SUM(M110:M121)+L106-N122 -> 572748.1191 | N122: =MAX(O110:O121) -> 0
J124: Year 8 | O124: Withdrawal can be made only once in a year
H125: Deposited | J125: Month | K125: Deposit | L125: Balance | M125: Interest | O125: Withdrawal | P125: PPF Interest Rate
H126: before 5th | J126: Apr | K126: 5000 | L126: =$L$122+IF(H126="before 5th",K126,0) -> 577748.1191 | M126: =L126*$P$126/12 -> 4188.673864 | N126: =IF(O126=MAX($O$126:$O$137),O126,IF(N125=MAX($O$126:$O$137),N125,0)) -> 0 | P126: 0.087
D127: =IF($M$9=0,"Withdrawal limit","") -> Withdrawal limit | F127: =IF($M$9=0,50%*MIN(L122,L74),"") -> 143024.7462 | H127: before 5th | J127: May | K127: 5000 | L127: =SUM($K$126:K126)+$L$122+IF(H127="before 5th",K127,0) -> 582748.1191 | M127: =L127*$P$126/12 -> 4224.923864 | N127: =IF(O127=MAX($O$126:$O$137),O127,IF(N126=MAX($O$126:$O$137),N126,0)) -> 0 | P127: PPF investment limit
H128: before 5th | J128: Jun | K128: 5000 | L128: =SUM($K$126:K127)+$L$122+IF(H128="before 5th",K128,0) -> 587748.1191 | M128: 4261.173864 | N128: 0 | P128: 150000
H129: before 5th | J129: Jul | K129: 5000 | L129: =SUM($K$126:K128)+$L$122+IF(H129="before 5th",K129,0) -> 592748.1191 | M129: 4297.423864 | N129: 0 | P129: =IF(SUM(K126:K137)>P128,"Warning: total investment exceeds allowed limit","") -> 
H130: before 5th | J130: Aug | K130: 5000 | L130: =SUM($K$126:K129)+$L$122+IF(H130="before 5th",K130,0) -> 597748.1191 | M130: 4333.673864 | N130: 0
H131: before 5th | J131: Sep | K131: 5000 | L131: =SUM($K$126:K130)+$L$122+IF(H131="before 5th",K131,0) -> 602748.1191 | M131: 4369.923864 | N131: 0 | P131: =IF(N138>F127,"Withdrawal is above limit","") -> 
H132: before 5th | J132: Oct | K132: 5000 | L132: =SUM($K$126:K131)+$L$122+IF(H132="before 5th",K132,0) -> 607748.1191 | M132: 4406.173864 | N132: 0
H133: before 5th | J133: Nov | K133: 5000 | L133: =SUM($K$126:K132)+$L$122+IF(H133="before 5th",K133,0) -> 612748.1191 | M133: 4442.423864 | N133: 0
H134: before 5th | J134: Dec | K134: 5000 | L134: =SUM($K$126:K133)+$L$122+IF(H134="before 5th",K134,0) -> 617748.1191 | M134: 4478.673864 | N134: 0
H135: before 5th | J135: Jan | K135: 5000 | L135: =SUM($K$126:K134)+$L$122+IF(H135="before 5th",K135,0) -> 622748.1191 | M135: 4514.923864 | N135: 0
H136: before 5th | J136: Feb | K136: 5000 | L136: =SUM($K$126:K135)+$L$122+IF(H136="before 5th",K136,0) -> 627748.1191 | M136: 4551.173864 | N136: 0
H137: before 5th | J137: Mar | K137: 5000 | L137: =SUM($K$126:K136)+$L$122+IF(H137="before 5th",K137,0) -> 632748.1191 | M137: 4587.423864 | N137: 0
J138: Year End Balance | L138: =SUM(K126:K137)+SUM(M126:M137)+L122-N138 -> 685404.7055 | N138: =MAX(O126:O137) -> 0
J140: Year 9 | O140: Withdrawal can be made only once in a year
H141: Deposited | J141: Month | K141: Deposit | L141: Balance | M141: Interest | O141: Withdrawal | P141: PPF Interest Rate
H142: before 5th | J142: Apr | K142: 5000 | L142: =$L$138+IF(H142="before 5th",K142,0) -> 690404.7055 | M142: =L142*$P$142/12 -> 5005.434115 | N142: =IF(O142=MAX($O$142:$O$153),O142,IF(N141=MAX($O$142:$O$153),N141,0)) -> 0 | P142: 0.087
D143: =IF($M$9=0,"Withdrawal limit","") -> Withdrawal limit | F143: =IF($M$9=0,50%*MIN(L138,L90),"") -> 186881.6492 | H143: before 5th | J143: May | K143: 5000 | L143: =SUM($K$142:K142)+$L$138+IF(H143="before 5th",K143,0) -> 695404.7055 | M143: =L143*$P$142/12 -> 5041.684115 | N143: =IF(O143=MAX($O$142:$O$153),O143,IF(N142=MAX($O$142:$O$153),N142,0)) -> 0 | P143: PPF investment limit
H144: before 5th | J144: Jun | K144: 5000 | L144: =SUM($K$142:K143)+$L$138+IF(H144="before 5th",K144,0) -> 700404.7055 | M144: 5077.934115 | N144: 0 | P144: 150000
H145: before 5th | J145: Jul | K145: 5000 | L145: =SUM($K$142:K144)+$L$138+IF(H145="before 5th",K145,0) -> 705404.7055 | M145: 5114.184115 | N145: 0 | P145: =IF(SUM(K142:K153)>P144,"Warning: total investment exceeds allowed limit","") -> 
H146: before 5th | J146: Aug | K146: 5000 | L146: =SUM($K$142:K145)+$L$138+IF(H146="before 5th",K146,0) -> 710404.7055 | M146: 5150.434115 | N146: 0
H147: before 5th | J147: Sep | K147: 5000 | L147: =SUM($K$142:K146)+$L$138+IF(H147="before 5th",K147,0) -> 715404.7055 | M147: 5186.684115 | N147: 0 | P147: =IF(N154>F143,"Withdrawal is above limit","") -> 
H148: before 5th | J148: Oct | K148: 5000 | L148: =SUM($K$142:K147)+$L$138+IF(H148="before 5th",K148,0) -> 720404.7055 | M148: 5222.934115 | N148: 0
H149: before 5th | J149: Nov | K149: 5000 | L149: =SUM($K$142:K148)+$L$138+IF(H149="before 5th",K149,0) -> 725404.7055 | M149: 5259.184115 | N149: 0
H150: before 5th | J150: Dec | K150: 5000 | L150: =SUM($K$142:K149)+$L$138+IF(H150="before 5th",K150,0) -> 730404.7055 | M150: 5295.434115 | N150: 0
H151: before 5th | J151: Jan | K151: 5000 | L151: =SUM($K$142:K150)+$L$138+IF(H151="before 5th",K151,0) -> 735404.7055 | M151: 5331.684115 | N151: 0
H152: before 5th | J152: Feb | K152: 5000 | L152: =SUM($K$142:K151)+$L$138+IF(H152="before 5th",K152,0) -> 740404.7055 | M152: 5367.934115 | N152: 0
H153: before 5th | J153: Mar | K153: 5000 | L153: =SUM($K$142:K152)+$L$138+IF(H153="before 5th",K153,0) -> 745404.7055 | M153: 5404.184115 | N153: 0
J154: Year End Balance | L154: =SUM(K142:K153)+SUM(M142:M153)+L138-N154 -> 807862.4149 | N154: =MAX(O142:O153) -> 0
J156: Year 10 | O156: Withdrawal can be made only once in a year
H157: Deposited | J157: Month | K157: Deposit | L157: Balance | M157: Interest | O157: Withdrawal | P157: PPF Interest Rate
H158: before 5th | J158: Apr | K158: 5000 | L158: =$L$154+IF(H158="before 5th",K158,0) -> 812862.4149 | M158: =L158*$P$158/12 -> 5893.252508 | N158: =IF(O158=MAX($O$158:$O$169),O158,IF(N157=MAX($O$158:$O$169),N157,0)) -> 0 | P158: 0.087
D159: =IF($M$9=0,"Withdrawal limit","") -> Withdrawal limit | F159: =IF($M$9=0,50%*MIN(L154,L106),"") -> 234554.1026 | H159: before 5th | J159: May | K159: 5000 | L159: =SUM($K$158:K158)+$L$154+IF(H159="before 5th",K159,0) -> 817862.4149 | M159: =L159*$P$158/12 -> 5929.502508 | N159: =IF(O159=MAX($O$158:$O$169),O159,IF(N158=MAX($O$158:$O$169),N158,0)) -> 0 | P159: PPF investment limit
H160: before 5th | J160: Jun | K160: 5000 | L160: =SUM($K$158:K159)+$L$154+IF(H160="before 5th",K160,0) -> 822862.4149 | M160: 5965.752508 | N160: 0 | P160: 150000
H161: before 5th | J161: Jul | K161: 5000 | L161: =SUM($K$158:K160)+$L$154+IF(H161="before 5th",K161,0) -> 827862.4149 | M161: 6002.002508 | N161: 0 | P161: =IF(SUM(K158:K169)>P160,"Warning: total investment exceeds allowed limit","") -> 
H162: before 5th | J162: Aug | K162: 5000 | L162: =SUM($K$158:K161)+$L$154+IF(H162="before 5th",K162,0) -> 832862.4149 | M162: 6038.252508 | N162: 0
H163: before 5th | J163: Sep | K163: 5000 | L163: =SUM($K$158:K162)+$L$154+IF(H163="before 5th",K163,0) -> 837862.4149 | M163: 6074.502508 | N163: 0 | P163: =IF(N170>F159,"Withdrawal is above limit","") -> 
H164: before 5th | J164: Oct | K164: 5000 | L164: =SUM($K$158:K163)+$L$154+IF(H164="before 5th",K164,0) -> 842862.4149 | M164: 6110.752508 | N164: 0
H165: before 5th | J165: Nov | K165: 5000 | L165: =SUM($K$158:K164)+$L$154+IF(H165="before 5th",K165,0) -> 847862.4149 | M165: 6147.002508 | N165: 0
H166: before 5th | J166: Dec | K166: 5000 | L166: =SUM($K$158:K165)+$L$154+IF(H166="before 5th",K166,0) -> 852862.4149 | M166: 6183.252508 | N166: 0
H167: before 5th | J167: Jan | K167: 5000 | L167: =SUM($K$158:K166)+$L$154+IF(H167="before 5th",K167,0) -> 857862.4149 | M167: 6219.502508 | N167: 0
H168: before 5th | J168: Feb | K168: 5000 | L168: =SUM($K$158:K167)+$L$154+IF(H168="before 5th",K168,0) -> 862862.4149 | M168: 6255.752508 | N168: 0
H169: before 5th | J169: Mar | K169: 5000 | L169: =SUM($K$158:K168)+$L$154+IF(H169="before 5th",K169,0) -> 867862.4149 | M169: 6292.002508 | N169: 0
J170: Year End Balance | L170: =SUM(K158:K169)+SUM(M158:M169)+L154-N170 -> 940973.945 | N170: =MAX(O158:O169) -> 0
J172: Year 11 | O172: Withdrawal can be made only once in a year
H173: Deposited | J173: Month | K173: Deposit | L173: Balance | M173: Interest | O173: Withdrawal | P173: PPF Interest Rate
H174: before 5th | J174: Apr | K174: 5000 | L174: =$L$170+IF(H174="before 5th",K174,0) -> 945973.945 | M174: =L174*$P$174/12 -> 6858.311101 | N174: =IF(O174=MAX($O$174:$O$185),O174,IF(N173=MAX($O$174:$O$185),N173,0)) -> 0 | P174: 0.087
D175: =IF($M$9=0,"Withdrawal limit","") -> Withdrawal limit | F175: =IF($M$9=0,50%*MIN(L170,L122),"") -> 286374.0596 | H175: before 5th | J175: May | K175: 5000 | L175: =SUM($K$174:K174)+$L$170+IF(H175="before 5th",K175,0) -> 950973.945 | M175: =L175*$P$174/12 -> 6894.561101 | N175: =IF(O175=MAX($O$174:$O$185),O175,IF(N174=MAX($O$174:$O$185),N174,0)) -> 0 | P175: PPF investment limit
H176: before 5th | J176: Jun | K176: 5000 | L176: =SUM($K$174:K175)+$L$170+IF(H176="before 5th",K176,0) -> 955973.945 | M176: 6930.811101 | N176: 0 | P176: 150000
H177: before 5th | J177: Jul | K177: 5000 | L177: =SUM($K$174:K176)+$L$170+IF(H177="before 5th",K177,0) -> 960973.945 | M177: 6967.061101 | N177: 0 | P177: =IF(SUM(K174:K185)>P176,"Warning: total investment exceeds allowed limit","") -> 
H178: before 5th | J178: Aug | K178: 5000 | L178: =SUM($K$174:K177)+$L$170+IF(H178="before 5th",K178,0) -> 965973.945 | M178: 7003.311101 | N178: 0
H179: before 5th | J179: Sep | K179: 5000 | L179: =SUM($K$174:K178)+$L$170+IF(H179="before 5th",K179,0) -> 970973.945 | M179: 7039.561101 | N179: 0 | P179: =IF(N186>F175,"Withdrawal is above limit","") -> 
H180: before 5th | J180: Oct | K180: 5000 | L180: =SUM($K$174:K179)+$L$170+IF(H180="before 5th",K180,0) -> 975973.945 | M180: 7075.811101 | N180: 0
H181: before 5th | J181: Nov | K181: 5000 | L181: =SUM($K$174:K180)+$L$170+IF(H181="before 5th",K181,0) -> 980973.945 | M181: 7112.061101 | N181: 0
H182: before 5th | J182: Dec | K182: 5000 | L182: =SUM($K$174:K181)+$L$170+IF(H182="before 5th",K182,0) -> 985973.945 | M182: 7148.311101 | N182: 0
H183: before 5th | J183: Jan | K183: 5000 | L183: =SUM($K$174:K182)+$L$170+IF(H183="before 5th",K183,0) -> 990973.945 | M183: 7184.561101 | N183: 0
H184: before 5th | J184: Feb | K184: 5000 | L184: =SUM($K$174:K183)+$L$170+IF(H184="before 5th",K184,0) -> 995973.945 | M184: 7220.811101 | N184: 0
H185: before 5th | J185: Mar | K185: 5000 | L185: =SUM($K$174:K184)+$L$170+IF(H185="before 5th",K185,0) -> 1000973.945 | M185: 7257.061101 | N185: 0
J186: Year End Balance | L186: =SUM(K174:K185)+SUM(M174:M185)+L170-N186 -> 1085666.178 | N186: =MAX(O174:O185) -> 0
J188: Year 12 | O188: Withdrawal can be made only once in a year
H189: Deposited | J189: Month | K189: Deposit | L189: Balance | M189: Interest | O189: Withdrawal | P189: PPF Interest Rate
H190: before 5th | J190: Apr | K190: 5000 | L190: =$L$186+IF(H190="before 5th",K190,0) -> 1090666.178 | M190: =L190*$P$190/12 -> 7907.329792 | N190: =IF(O190=MAX($O$190:$O$201),O190,IF(N189=MAX($O$190:$O$201),N189,0)) -> 0 | P190: 0.087
D191: =IF($M$9=0,"Withdrawal limit","") -> Withdrawal limit | F191: =IF($M$9=0,50%*MIN(L186,L138),"") -> 342702.3528 | H191: before 5th | J191: May | K191: 5000 | L191: =SUM($K$190:K190)+$L$186+IF(H191="before 5th",K191,0) -> 1095666.178 | M191: =L191*$P$190/12 -> 7943.579792 | N191: =IF(O191=MAX($O$190:$O$201),O191,IF(N190=MAX($O$190:$O$201),N190,0)) -> 0 | P191: PPF investment limit
H192: before 5th | J192: Jun | K192: 5000 | L192: =SUM($K$190:K191)+$L$186+IF(H192="before 5th",K192,0) -> 1100666.178 | M192: 7979.829792 | N192: 0 | P192: 150000
H193: before 5th | J193: Jul | K193: 5000 | L193: =SUM($K$190:K192)+$L$186+IF(H193="before 5th",K193,0) -> 1105666.178 | M193: 8016.079792 | N193: 0 | P193: =IF(SUM(K190:K201)>P192,"Warning: total investment exceeds allowed limit","") -> 
H194: before 5th | J194: Aug | K194: 5000 | L194: =SUM($K$190:K193)+$L$186+IF(H194="before 5th",K194,0) -> 1110666.178 | M194: 8052.329792 | N194: 0
H195: before 5th | J195: Sep | K195: 5000 | L195: =SUM($K$190:K194)+$L$186+IF(H195="before 5th",K195,0) -> 1115666.178 | M195: 8088.579792 | N195: 0 | P195: =IF(N202>F191,"Withdrawal is above limit","") -> 
H196: before 5th | J196: Oct | K196: 5000 | L196: =SUM($K$190:K195)+$L$186+IF(H196="before 5th",K196,0) -> 1120666.178 | M196: 8124.829792 | N196: 0
H197: before 5th | J197: Nov | K197: 5000 | L197: =SUM($K$190:K196)+$L$186+IF(H197="before 5th",K197,0) -> 1125666.178 | M197: 8161.079792 | N197: 0
H198: before 5th | J198: Dec | K198: 5000 | L198: =SUM($K$190:K197)+$L$186+IF(H198="before 5th",K198,0) -> 1130666.178 | M198: 8197.329792 | N198: 0
H199: before 5th | J199: Jan | K199: 5000 | L199: =SUM($K$190:K198)+$L$186+IF(H199="before 5th",K199,0) -> 1135666.178 | M199: 8233.579792 | N199: 0
H200: before 5th | J200: Feb | K200: 5000 | L200: =SUM($K$190:K199)+$L$186+IF(H200="before 5th",K200,0) -> 1140666.178 | M200: 8269.829792 | N200: 0
H201: before 5th | J201: Mar | K201: 5000 | L201: =SUM($K$190:K200)+$L$186+IF(H201="before 5th",K201,0) -> 1145666.178 | M201: 8306.079792 | N201: 0
J202: Year End Balance | L202: =SUM(K190:K201)+SUM(M190:M201)+L186-N202 -> 1242946.636 | N202: =MAX(O190:O201) -> 0
J204: Year 13 | O204: Withdrawal can be made only once in a year
H205: Deposited | J205: Month | K205: Deposit | L205: Balance | M205: Interest | O205: Withdrawal | P205: PPF Interest Rate
H206: before 5th | J206: Apr | K206: 5000 | L206: =$L$202+IF(H206="before 5th",K206,0) -> 1247946.636 | M206: =L206*$P$206/12 -> 9047.613109 | N206: =IF(O206=MAX($O$206:$O$217),O206,IF(N205=MAX($O$206:$O$217),N205,0)) -> 0 | P206: 0.087
D207: =IF($M$9=0,"Withdrawal limit","") -> Withdrawal limit | F207: =IF($M$9=0,50%*MIN(L202,L154),"") -> 403931.2074 | H207: before 5th | J207: May | K207: 5000 | L207: =SUM($K$206:K206)+$L$202+IF(H207="before 5th",K207,0) -> 1252946.636 | M207: =L207*$P$206/12 -> 9083.863109 | N207: =IF(O207=MAX($O$206:$O$217),O207,IF(N206=MAX($O$206:$O$217),N206,0)) -> 0 | P207: PPF investment limit
H208: before 5th | J208: Jun | K208: 5000 | L208: =SUM($K$206:K207)+$L$202+IF(H208="before 5th",K208,0) -> 1257946.636 | M208: 9120.113109 | N208: 0 | P208: 150000
H209: before 5th | J209: Jul | K209: 5000 | L209: =SUM($K$206:K208)+$L$202+IF(H209="before 5th",K209,0) -> 1262946.636 | M209: 9156.363109 | N209: 0 | P209: =IF(SUM(K206:K217)>P208,"Warning: total investment exceeds allowed limit","") -> 
H210: before 5th | J210: Aug | K210: 5000 | L210: =SUM($K$206:K209)+$L$202+IF(H210="before 5th",K210,0) -> 1267946.636 | M210: 9192.613109 | N210: 0
H211: before 5th | J211: Sep | K211: 5000 | L211: =SUM($K$206:K210)+$L$202+IF(H211="before 5th",K211,0) -> 1272946.636 | M211: 9228.863109 | N211: 0 | P211: =IF(N218>F207,"Withdrawal is above limit","") -> 
H212: before 5th | J212: Oct | K212: 5000 | L212: =SUM($K$206:K211)+$L$202+IF(H212="before 5th",K212,0) -> 1277946.636 | M212: 9265.113109 | N212: 0
H213: before 5th | J213: Nov | K213: 5000 | L213: =SUM($K$206:K212)+$L$202+IF(H213="before 5th",K213,0) -> 1282946.636 | M213: 9301.363109 | N213: 0
H214: before 5th | J214: Dec | K214: 5000 | L214: =SUM($K$206:K213)+$L$202+IF(H214="before 5th",K214,0) -> 1287946.636 | M214: 9337.613109 | N214: 0
H215: before 5th | J215: Jan | K215: 5000 | L215: =SUM($K$206:K214)+$L$202+IF(H215="before 5th",K215,0) -> 1292946.636 | M215: 9373.863109 | N215: 0
... 33 more rows

Sheet Post 15 yearsTracker
AD1: before 5th
D2: Use this sheet to track your PPF if you have extended it at the end of the 15 year period | AD2: after 5th
J4: Note: The tracker assumes that the same interest rate is applicable throughout the financial year
E5: Enter data only in green cells | J5: In F.Y.2011-12,2 interest rates were applicable-8% till November 2011 and 8.6% after that.
J6: You will need to make suitable modifications in the interest column cells to reflect this
J7: Send me an email if you need help with this
J10: Balance at the start of 5Y extension block
L11: 469108
J13: 1st Extension Year 1 | O13: Withdrawal can be made only once in a year
H14: Deposited | J14: Month | K14: Deposit | L14: Balance | M14: Interest | O14: Withdrawal | P14: PPF Interest Rate
H15: before 5th | J15: Apr | K15: 5000 | L15: =$L$11+IF(H15="before 5th",K15,0) -> 474108 | M15: =L15*$P$15/12 -> 3437.283 | N15: =IF(O15=MAX($O$15:$O$26),O15,IF(N14=MAX($O$15:$O$26),N14,0)) -> 0 | P15: 0.087
D16: =IF($M$9=0,"Withdrawal limit","") -> Withdrawal limit | F16: =60%*$L$11 -> 281464.8 | H16: before 5th | J16: May | K16: 5000 | L16: =SUM($K$15:K15)+$L$11+IF(H16="before 5th",K16,0) -> 479108 | M16: 3473.533 | N16: 0 | P16: PPF investment limit
H17: before 5th | J17: Jun | K17: 5000 | L17: =SUM($K$15:K16)+$L$11+IF(H17="before 5th",K17,0) -> 484108 | M17: 3509.783 | N17: 0 | P17: 150000
H18: before 5th | J18: Jul | K18: 5000 | L18: =SUM($K$15:K17)+$L$11+IF(H18="before 5th",K18,0) -> 489108 | M18: 3546.033 | N18: 0 | P18: =IF(SUM(K15:K26)>P17,"Warning: total investment exceeds allowed limit","") -> 
H19: before 5th | J19: Aug | K19: 5000 | L19: =SUM($K$15:K18)+$L$11+IF(H19="before 5th",K19,0) -> 494108 | M19: 3582.283 | N19: 0
H20: before 5th | J20: Sep | K20: 5000 | L20: =SUM($K$15:K19)+$L$11+IF(H20="before 5th",K20,0) -> 499108 | M20: 3618.533 | N20: 0 | P20: =IF(N27>F16,"Withdrawal is above limit","") -> 
H21: before 5th | J21: Oct | K21: 5000 | L21: =SUM($K$15:K20)+$L$11+IF(H21="before 5th",K21,0) -> 504108 | M21: 3654.783 | N21: 0
H22: before 5th | J22: Nov | K22: 5000 | L22: =SUM($K$15:K21)+$L$11+IF(H22="before 5th",K22,0) -> 509108 | M22: 3691.033 | N22: 0
H23: before 5th | J23: Dec | K23: 5000 | L23: =SUM($K$15:K22)+$L$11+IF(H23="before 5th",K23,0) -> 514108 | M23: 3727.283 | N23: 0
H24: before 5th | J24: Jan | K24: 5000 | L24: =SUM($K$15:K23)+$L$11+IF(H24="before 5th",K24,0) -> 519108 | M24: 3763.533 | N24: 0
H25: before 5th | J25: Feb | K25: 5000 | L25: =SUM($K$15:K24)+$L$11+IF(H25="before 5th",K25,0) -> 524108 | M25: 3799.783 | N25: 0
H26: before 5th | J26: Mar | K26: 5000 | L26: =SUM($K$15:K25)+$L$11+IF(H26="before 5th",K26,0) -> 529108 | M26: 3836.033 | N26: 0
J27: Year End Balance | L27: =SUM(K15:K26)+SUM(M15:M26)+L11-N27 -> 572747.896 | N27: =MAX(O15:O26) -> 0
J29: 1st Extension Year 2 | O29: Withdrawal can be made only once in a year
H30: Deposited | J30: Month | K30: Deposit | L30: Balance | M30: Interest | O30: Withdrawal | P30: PPF Interest Rate
H31: before 5th | J31: Apr | K31: 5000 | L31: =$L$27+IF(H31="before 5th",K31,0) -> 577747.896 | M31: =L31*$P$31/12 -> 4188.672246 | N31: =IF(O31=MAX($O$31:$O$42),O31,IF(N30=MAX($O$31:$O$42),N30,0)) -> 0 | P31: 0.087
D32: =IF($M$9=0,"Withdrawal limit","") -> Withdrawal limit | F32: =60%*$L$11 -> 281464.8 | H32: before 5th | J32: May | K32: 5000 | L32: =SUM($K$31:K31)+$L$27+IF(H32="before 5th",K32,0) -> 582747.896 | M32: 4224.922246 | N32: 0 | P32: PPF investment limit
H33: before 5th | J33: Jun | K33: 5000 | L33: =SUM($K$31:K32)+$L$27+IF(H33="before 5th",K33,0) -> 587747.896 | M33: 4261.172246 | N33: 0 | P33: 150000
H34: before 5th | J34: Jul | K34: 5000 | L34: =SUM($K$31:K33)+$L$27+IF(H34="before 5th",K34,0) -> 592747.896 | M34: 4297.422246 | N34: 0 | P34: =IF(SUM(K31:K42)>P33,"Warning: total investment exceeds allowed limit","") -> 
H35: before 5th | J35: Aug | K35: 5000 | L35: =SUM($K$31:K34)+$L$27+IF(H35="before 5th",K35,0) -> 597747.896 | M35: 4333.672246 | N35: 0
H36: before 5th | J36: Sep | K36: 5000 | L36: =SUM($K$31:K35)+$L$27+IF(H36="before 5th",K36,0) -> 602747.896 | M36: 4369.922246 | N36: 0 | P36: =IF(N43>F32,"Withdrawal is above limit","") -> 
H37: before 5th | J37: Oct | K37: 5000 | L37: =SUM($K$31:K36)+$L$27+IF(H37="before 5th",K37,0) -> 607747.896 | M37: 4406.172246 | N37: 0
H38: before 5th | J38: Nov | K38: 5000 | L38: =SUM($K$31:K37)+$L$27+IF(H38="before 5th",K38,0) -> 612747.896 | M38: 4442.422246 | N38: 0
H39: before 5th | J39: Dec | K39: 5000 | L39: =SUM($K$31:K38)+$L$27+IF(H39="before 5th",K39,0) -> 617747.896 | M39: 4478.672246 | N39: 0
H40: before 5th | J40: Jan | K40: 5000 | L40: =SUM($K$31:K39)+$L$27+IF(H40="before 5th",K40,0) -> 622747.896 | M40: 4514.922246 | N40: 0
H41: before 5th | J41: Feb | K41: 5000 | L41: =SUM($K$31:K40)+$L$27+IF(H41="before 5th",K41,0) -> 627747.896 | M41: 4551.172246 | N41: 0
H42: before 5th | J42: Mar | K42: 5000 | L42: =SUM($K$31:K41)+$L$27+IF(H42="before 5th",K42,0) -> 632747.896 | M42: 4587.422246 | N42: 0
J43: Year End Balance | L43: =SUM(K31:K42)+SUM(M31:M42)+L27-N43 -> 685404.463 | N43: =MAX(O31:O42) -> 0
J45: 1st Extension Year 3 | O45: Withdrawal can be made only once in a year
H46: Deposited | J46: Month | K46: Deposit | L46: Balance | M46: Interest | O46: Withdrawal | P46: PPF Interest Rate
H47: before 5th | J47: Apr | K47: 5000 | L47: =$L$43+IF(H47="before 5th",K47,0) -> 690404.463 | M47: =L47*$P$47/12 -> 5005.432356 | N47: =IF(O47=MAX($O$47:$O$58),O47,IF(N46=MAX($O$47:$O$58),N46,0)) -> 0 | P47: 0.087
D48: =IF($M$9=0,"Withdrawal limit","") -> Withdrawal limit | F48: =60%*$L$11 -> 281464.8 | H48: before 5th | J48: May | K48: 5000 | L48: =SUM($K$47:K47)+$L$43+IF(H48="before 5th",K48,0) -> 695404.463 | M48: 5041.682356 | N48: 0 | P48: PPF investment limit
H49: before 5th | J49: Jun | K49: 5000 | L49: =SUM($K$47:K48)+$L$43+IF(H49="before 5th",K49,0) -> 700404.463 | M49: 5077.932356 | N49: 0 | P49: 150000
H50: before 5th | J50: Jul | K50: 5000 | L50: =SUM($K$47:K49)+$L$43+IF(H50="before 5th",K50,0) -> 705404.463 | M50: 5114.182356 | N50: 0 | P50: =IF(SUM(K47:K58)>P49,"Warning: total investment exceeds allowed limit","") -> 
H51: before 5th | J51: Aug | K51: 5000 | L51: =SUM($K$47:K50)+$L$43+IF(H51="before 5th",K51,0) -> 710404.463 | M51: 5150.432356 | N51: 0
H52: before 5th | J52: Sep | K52: 5000 | L52: =SUM($K$47:K51)+$L$43+IF(H52="before 5th",K52,0) -> 715404.463 | M52: 5186.682356 | N52: 0 | P52: =IF(N59>F48,"Withdrawal is above limit","") -> 
H53: before 5th | J53: Oct | K53: 5000 | L53: =SUM($K$47:K52)+$L$43+IF(H53="before 5th",K53,0) -> 720404.463 | M53: 5222.932356 | N53: 0
H54: before 5th | J54: Nov | K54: 5000 | L54: =SUM($K$47:K53)+$L$43+IF(H54="before 5th",K54,0) -> 725404.463 | M54: 5259.182356 | N54: 0
H55: before 5th | J55: Dec | K55: 5000 | L55: =SUM($K$47:K54)+$L$43+IF(H55="before 5th",K55,0) -> 730404.463 | M55: 5295.432356 | N55: 0
H56: before 5th | J56: Jan | K56: 5000 | L56: =SUM($K$47:K55)+$L$43+IF(H56="before 5th",K56,0) -> 735404.463 | M56: 5331.682356 | N56: 0
H57: before 5th | J57: Feb | K57: 5000 | L57: =SUM($K$47:K56)+$L$43+IF(H57="before 5th",K57,0) -> 740404.463 | M57: 5367.932356 | N57: 0
H58: before 5th | J58: Mar | K58: 5000 | L58: =SUM($K$47:K57)+$L$43+IF(H58="before 5th",K58,0) -> 745404.463 | M58: 5404.182356 | N58: 0
J59: Year End Balance | L59: =SUM(K47:K58)+SUM(M47:M58)+L43-N59 -> 807862.1512 | N59: =MAX(O47:O58) -> 0
J61: 1st Extension Year 4 | O61: Withdrawal can be made only once in a year
H62: Deposited | J62: Month | K62: Deposit | L62: Balance | M62: Interest | O62: Withdrawal | P62: PPF Interest Rate
H63: before 5th | J63: Apr | K63: 5000 | L63: =$L$59+IF(H63="before 5th",K63,0) -> 812862.1512 | M63: =L63*$P$63/12 -> 5893.250596 | N63: =IF(O63=MAX($O$63:$O$74),O63,IF(N62=MAX($O$63:$O$74),N62,0)) -> 0 | P63: 0.087
D64: =IF($M$9=0,"Withdrawal limit","") -> Withdrawal limit | F64: =60%*$L$11 -> 281464.8 | H64: before 5th | J64: May | K64: 5000 | L64: =SUM($K$63:K63)+$L$59+IF(H64="before 5th",K64,0) -> 817862.1512 | M64: 5929.500596 | N64: 0 | P64: PPF investment limit
H65: before 5th | J65: Jun | K65: 5000 | L65: =SUM($K$63:K64)+$L$59+IF(H65="before 5th",K65,0) -> 822862.1512 | M65: 5965.750596 | N65: 0 | P65: 150000
H66: before 5th | J66: Jul | K66: 5000 | L66: =SUM($K$63:K65)+$L$59+IF(H66="before 5th",K66,0) -> 827862.1512 | M66: 6002.000596 | N66: 0 | P66: =IF(SUM(K63:K74)>P65,"Warning: total investment exceeds allowed limit","") -> 
H67: before 5th | J67: Aug | K67: 5000 | L67: =SUM($K$63:K66)+$L$59+IF(H67="before 5th",K67,0) -> 832862.1512 | M67: 6038.250596 | N67: 0
H68: before 5th | J68: Sep | K68: 5000 | L68: =SUM($K$63:K67)+$L$59+IF(H68="before 5th",K68,0) -> 837862.1512 | M68: 6074.500596 | N68: 0 | P68: =IF(N75>F64,"Withdrawal is above limit","") -> 
H69: before 5th | J69: Oct | K69: 5000 | L69: =SUM($K$63:K68)+$L$59+IF(H69="before 5th",K69,0) -> 842862.1512 | M69: 6110.750596 | N69: 0
H70: before 5th | J70: Nov | K70: 5000 | L70: =SUM($K$63:K69)+$L$59+IF(H70="before 5th",K70,0) -> 847862.1512 | M70: 6147.000596 | N70: 0
H71: before 5th | J71: Dec | K71: 5000 | L71: =SUM($K$63:K70)+$L$59+IF(H71="before 5th",K71,0) -> 852862.1512 | M71: 6183.250596 | N71: 0
H72: before 5th | J72: Jan | K72: 5000 | L72: =SUM($K$63:K71)+$L$59+IF(H72="before 5th",K72,0) -> 857862.1512 | M72: 6219.500596 | N72: 0
H73: before 5th | J73: Feb | K73: 5000 | L73: =SUM($K$63:K72)+$L$59+IF(H73="before 5th",K73,0) -> 862862.1512 | M73: 6255.750596 | N73: 0
H74: before 5th | J74: Mar | K74: 5000 | L74: =SUM($K$63:K73)+$L$59+IF(H74="before 5th",K74,0) -> 867862.1512 | M74: 6292.000596 | N74: 0
J75: Year End Balance | L75: =SUM(K63:K74)+SUM(M63:M74)+L59-N75 -> 940973.6584 | N75: =MAX(O63:O74) -> 0
J77: 1st Extension Year 5 | O77: Withdrawal can be made only once in a year
H78: Deposited | J78: Month | K78: Deposit | L78: Balance | M78: Interest | O78: Withdrawal | P78: PPF Interest Rate
H79: before 5th | J79: Apr | K79: 5000 | L79: =$L$75+IF(H79="before 5th",K79,0) -> 945973.6584 | M79: =L79*$P$79/12 -> 6858.309023 | N79: =IF(O79=MAX($O$79:$O$90),O79,IF(N78=MAX($O$79:$O$90),N78,0)) -> 0 | P79: 0.087
D80: =IF($M$9=0,"Withdrawal limit","") -> Withdrawal limit | F80: =60%*$L$11 -> 281464.8 | H80: before 5th | J80: May | K80: 5000 | L80: =SUM($K$79:K79)+$L$75+IF(H80="before 5th",K80,0) -> 950973.6584 | M80: 6894.559023 | N80: 0 | P80: PPF investment limit
H81: before 5th | J81: Jun | K81: 5000 | L81: =SUM($K$79:K80)+$L$75+IF(H81="before 5th",K81,0) -> 955973.6584 | M81: 6930.809023 | N81: 0 | P81: 150000
H82: before 5th | J82: Jul | K82: 5000 | L82: =SUM($K$79:K81)+$L$75+IF(H82="before 5th",K82,0) -> 960973.6584 | M82: 6967.059023 | N82: 0 | P82: =IF(SUM(K79:K90)>P81,"Warning: total investment exceeds allowed limit","") -> 
H83: before 5th | J83: Aug | K83: 5000 | L83: =SUM($K$79:K82)+$L$75+IF(H83="before 5th",K83,0) -> 965973.6584 | M83: 7003.309023 | N83: 0
H84: before 5th | J84: Sep | K84: 5000 | L84: =SUM($K$79:K83)+$L$75+IF(H84="before 5th",K84,0) -> 970973.6584 | M84: 7039.559023 | N84: 0 | P84: =IF(N91>F80,"Withdrawal is above limit","") -> 
H85: before 5th | J85: Oct | K85: 5000 | L85: =SUM($K$79:K84)+$L$75+IF(H85="before 5th",K85,0) -> 975973.6584 | M85: 7075.809023 | N85: 0
H86: before 5th | J86: Nov | K86: 5000 | L86: =SUM($K$79:K85)+$L$75+IF(H86="before 5th",K86,0) -> 980973.6584 | M86: 7112.059023 | N86: 0
H87: before 5th | J87: Dec | K87: 5000 | L87: =SUM($K$79:K86)+$L$75+IF(H87="before 5th",K87,0) -> 985973.6584 | M87: 7148.309023 | N87: 0
H88: before 5th | J88: Jan | K88: 5000 | L88: =SUM($K$79:K87)+$L$75+IF(H88="before 5th",K88,0) -> 990973.6584 | M88: 7184.559023 | N88: 0
H89: before 5th | J89: Feb | K89: 5000 | L89: =SUM($K$79:K88)+$L$75+IF(H89="before 5th",K89,0) -> 995973.6584 | M89: 7220.809023 | N89: 0
H90: before 5th | J90: Mar | K90: 5000 | L90: =SUM($K$79:K89)+$L$75+IF(H90="before 5th",K90,0) -> 1000973.658 | M90: 7257.059023 | N90: 0
J91: Year End Balance | L91: =SUM(K79:K90)+SUM(M79:M90)+L75-N91 -> 1085665.867 | N91: =MAX(O79:O90) -> 0
J93: 2nd Extension Year 1 | O93: Withdrawal can be made only once in a year
H94: Deposited | J94: Month | K94: Deposit | L94: Balance | M94: Interest | O94: Withdrawal | P94: PPF Interest Rate
H95: before 5th | J95: Apr | K95: 5000 | L95: =$L$91+IF(H95="before 5th",K95,0) -> 1090665.867 | M95: =L95*$P$95/12 -> 7907.327533 | N95: =IF(O95=MAX($O$95:$O$106),O95,IF(N94=MAX($O$95:$O$106),N94,0)) -> 0 | P95: 0.087
D96: =IF($M$9=0,"Withdrawal limit","") -> Withdrawal limit | F96: =60%*$L$91 -> 651399.52 | H96: before 5th | J96: May | K96: 5000 | L96: =SUM($K$95:K95)+$L$91+IF(H96="before 5th",K96,0) -> 1095665.867 | M96: 7943.577533 | N96: 0 | P96: PPF investment limit
H97: before 5th | J97: Jun | K97: 5000 | L97: =SUM($K$95:K96)+$L$91+IF(H97="before 5th",K97,0) -> 1100665.867 | M97: 7979.827533 | N97: 0 | P97: 150000
H98: before 5th | J98: Jul | K98: 5000 | L98: =SUM($K$95:K97)+$L$91+IF(H98="before 5th",K98,0) -> 1105665.867 | M98: 8016.077533 | N98: 0 | P98: =IF(SUM(K95:K106)>P97,"Warning: total investment exceeds allowed limit","") -> 
H99: before 5th | J99: Aug | K99: 5000 | L99: =SUM($K$95:K98)+$L$91+IF(H99="before 5th",K99,0) -> 1110665.867 | M99: 8052.327533 | N99: 0
H100: before 5th | J100: Sep | K100: 5000 | L100: =SUM($K$95:K99)+$L$91+IF(H100="before 5th",K100,0) -> 1115665.867 | M100: 8088.577533 | N100: 0 | P100: =IF(N107>F96,"Withdrawal is above limit","") -> 
H101: before 5th | J101: Oct | K101: 5000 | L101: =SUM($K$95:K100)+$L$91+IF(H101="before 5th",K101,0) -> 1120665.867 | M101: 8124.827533 | N101: 0
H102: before 5th | J102: Nov | K102: 5000 | L102: =SUM($K$95:K101)+$L$91+IF(H102="before 5th",K102,0) -> 1125665.867 | M102: 8161.077533 | N102: 0
H103: before 5th | J103: Dec | K103: 5000 | L103: =SUM($K$95:K102)+$L$91+IF(H103="before 5th",K103,0) -> 1130665.867 | M103: 8197.327533 | N103: 0
H104: before 5th | J104: Jan | K104: 5000 | L104: =SUM($K$95:K103)+$L$91+IF(H104="before 5th",K104,0) -> 1135665.867 | M104: 8233.577533 | N104: 0
H105: before 5th | J105: Feb | K105: 5000 | L105: =SUM($K$95:K104)+$L$91+IF(H105="before 5th",K105,0) -> 1140665.867 | M105: 8269.827533 | N105: 0
H106: before 5th | J106: Mar | K106: 5000 | L106: =SUM($K$95:K105)+$L$91+IF(H106="before 5th",K106,0) -> 1145665.867 | M106: 8306.077533 | N106: 0
J107: Year End Balance | L107: =SUM(K95:K106)+SUM(M95:M106)+L91-N107 -> 1242946.297 | N107: =MAX(O95:O106) -> 0
J109: 2nd Extension Year 2 | O109: Withdrawal can be made only once in a year
H110: Deposited | J110: Month | K110: Deposit | L110: Balance | M110: Interest | O110: Withdrawal | P110: PPF Interest Rate
H111: before 5th | J111: Apr | K111: 5000 | L111: =$L$107+IF(H111="before 5th",K111,0) -> 1247946.297 | M111: =L111*$P$111/12 -> 9047.610654 | N111: =IF(O111=MAX($O$111:$O$122),O111,IF(N110=MAX($O$111:$O$122),N110,0)) -> 0 | P111: 0.087
D112: =IF($M$9=0,"Withdrawal limit","") -> Withdrawal limit | F112: =60%*$L$91 -> 651399.52 | H112: before 5th | J112: May | K112: 5000 | L112: =SUM($K$111:K111)+$L$107+IF(H112="before 5th",K112,0) -> 1252946.297 | M112: 9083.860654 | N112: 0 | P112: PPF investment limit
H113: before 5th | J113: Jun | K113: 5000 | L113: =SUM($K$111:K112)+$L$107+IF(H113="before 5th",K113,0) -> 1257946.297 | M113: 9120.110654 | N113: 0 | P113: 150000
H114: before 5th | J114: Jul | K114: 5000 | L114: =SUM($K$111:K113)+$L$107+IF(H114="before 5th",K114,0) -> 1262946.297 | M114: 9156.360654 | N114: 0 | P114: =IF(SUM(K111:K122)>P113,"Warning: total investment exceeds allowed limit","") -> 
H115: before 5th | J115: Aug | K115: 5000 | L115: =SUM($K$111:K114)+$L$107+IF(H115="before 5th",K115,0) -> 1267946.297 | M115: 9192.610654 | N115: 0
H116: before 5th | J116: Sep | K116: 5000 | L116: =SUM($K$111:K115)+$L$107+IF(H116="before 5th",K116,0) -> 1272946.297 | M116: 9228.860654 | N116: 0 | P116: =IF(N123>F112,"Withdrawal is above limit","") -> 
H117: before 5th | J117: Oct | K117: 5000 | L117: =SUM($K$111:K116)+$L$107+IF(H117="before 5th",K117,0) -> 1277946.297 | M117: 9265.110654 | N117: 0
H118: before 5th | J118: Nov | K118: 5000 | L118: =SUM($K$111:K117)+$L$107+IF(H118="before 5th",K118,0) -> 1282946.297 | M118: 9301.360654 | N118: 0
H119: before 5th | J119: Dec | K119: 5000 | L119: =SUM($K$111:K118)+$L$107+IF(H119="before 5th",K119,0) -> 1287946.297 | M119: 9337.610654 | N119: 0
H120: before 5th | J120: Jan | K120: 5000 | L120: =SUM($K$111:K119)+$L$107+IF(H120="before 5th",K120,0) -> 1292946.297 | M120: 9373.860654 | N120: 0
H121: before 5th | J121: Feb | K121: 5000 | L121: =SUM($K$111:K120)+$L$107+IF(H121="before 5th",K121,0) -> 1297946.297 | M121: 9410.110654 | N121: 0
H122: before 5th | J122: Mar | K122: 5000 | L122: =SUM($K$111:K121)+$L$107+IF(H122="before 5th",K122,0) -> 1302946.297 | M122: 9446.360654 | N122: 0
J123: Year End Balance | L123: =SUM(K111:K122)+SUM(M111:M122)+L107-N123 -> 1413910.125 | N123: =MAX(O111:O122) -> 0
J125: 2nd Extension Year 3 | O125: Withdrawal can be made only once in a year
H126: Deposited | J126: Month | K126: Deposit | L126: Balance | M126: Interest | O126: Withdrawal | P126: PPF Interest Rate
H127: before 5th | J127: Apr | K127: 5000 | L127: =$L$123+IF(H127="before 5th",K127,0) -> 1418910.125 | M127: =L127*$P$127/12 -> 10287.09841 | N127: =IF(O127=MAX($O$127:$O$138),O127,IF(N126=MAX($O$127:$O$138),N126,0)) -> 0 | P127: 0.087
D128: =IF($M$9=0,"Withdrawal limit","") -> Withdrawal limit | F128: =60%*$L$91 -> 651399.52 | H128: before 5th | J128: May | K128: 5000 | L128: =SUM($K$127:K127)+$L$123+IF(H128="before 5th",K128,0) -> 1423910.125 | M128: 10323.34841 | N128: 0 | P128: PPF investment limit
H129: before 5th | J129: Jun | K129: 5000 | L129: =SUM($K$127:K128)+$L$123+IF(H129="before 5th",K129,0) -> 1428910.125 | M129: 10359.59841 | N129: 0 | P129: 150000
H130: before 5th | J130: Jul | K130: 5000 | L130: =SUM($K$127:K129)+$L$123+IF(H130="before 5th",K130,0) -> 1433910.125 | M130: 10395.84841 | N130: 0 | P130: =IF(SUM(K127:K138)>P129,"Warning: total investment exceeds allowed limit","") -> 
H131: before 5th | J131: Aug | K131: 5000 | L131: =SUM($K$127:K130)+$L$123+IF(H131="before 5th",K131,0) -> 1438910.125 | M131: 10432.09841 | N131: 0
H132: before 5th | J132: Sep | K132: 5000 | L132: =SUM($K$127:K131)+$L$123+IF(H132="before 5th",K132,0) -> 1443910.125 | M132: 10468.34841 | N132: 0 | P132: =IF(N139>F128,"Withdrawal is above limit","") -> 
H133: before 5th | J133: Oct | K133: 5000 | L133: =SUM($K$127:K132)+$L$123+IF(H133="before 5th",K133,0) -> 1448910.125 | M133: 10504.59841 | N133: 0
H134: before 5th | J134: Nov | K134: 5000 | L134: =SUM($K$127:K133)+$L$123+IF(H134="before 5th",K134,0) -> 1453910.125 | M134: 10540.84841 | N134: 0
H135: before 5th | J135: Dec | K135: 5000 | L135: =SUM($K$127:K134)+$L$123+IF(H135="before 5th",K135,0) -> 1458910.125 | M135: 10577.09841 | N135: 0
H136: before 5th | J136: Jan | K136: 5000 | L136: =SUM($K$127:K135)+$L$123+IF(H136="before 5th",K136,0) -> 1463910.125 | M136: 10613.34841 | N136: 0
H137: before 5th | J137: Feb | K137: 5000 | L137: =SUM($K$127:K136)+$L$123+IF(H137="before 5th",K137,0) -> 1468910.125 | M137: 10649.59841 | N137: 0
H138: before 5th | J138: Mar | K138: 5000 | L138: =SUM($K$127:K137)+$L$123+IF(H138="before 5th",K138,0) -> 1473910.125 | M138: 10685.84841 | N138: 0
J139: Year End Balance | L139: =SUM(K127:K138)+SUM(M127:M138)+L123-N139 -> 1599747.806 | N139: =MAX(O127:O138) -> 0
J141: 2nd Extension Year 4 | O141: Withdrawal can be made only once in a year
H142: Deposited | J142: Month | K142: Deposit | L142: Balance | M142: Interest | O142: Withdrawal | P142: PPF Interest Rate
H143: before 5th | J143: Apr | K143: 5000 | L143: =$L$139+IF(H143="before 5th",K143,0) -> 1604747.806 | M143: =L143*$P$143/12 -> 11634.42159 | N143: =IF(O143=MAX($O$143:$O$154),O143,IF(N142=MAX($O$143:$O$154),N142,0)) -> 0 | P143: 0.087
D144: =IF($M$9=0,"Withdrawal limit","") -> Withdrawal limit | F144: =60%*$L$91 -> 651399.52 | H144: before 5th | J144: May | K144: 5000 | L144: =SUM($K$143:K143)+$L$139+IF(H144="before 5th",K144,0) -> 1609747.806 | M144: 11670.67159 | N144: 0 | P144: PPF investment limit
H145: before 5th | J145: Jun | K145: 5000 | L145: =SUM($K$143:K144)+$L$139+IF(H145="before 5th",K145,0) -> 1614747.806 | M145: 11706.92159 | N145: 0 | P145: 150000
H146: before 5th | J146: Jul | K146: 5000 | L146: =SUM($K$143:K145)+$L$139+IF(H146="before 5th",K146,0) -> 1619747.806 | M146: 11743.17159 | N146: 0 | P146: =IF(SUM(K143:K154)>P145,"Warning: total investment exceeds allowed limit","") -> 
H147: before 5th | J147: Aug | K147: 5000 | L147: =SUM($K$143:K146)+$L$139+IF(H147="before 5th",K147,0) -> 1624747.806 | M147: 11779.42159 | N147: 0
H148: before 5th | J148: Sep | K148: 5000 | L148: =SUM($K$143:K147)+$L$139+IF(H148="before 5th",K148,0) -> 1629747.806 | M148: 11815.67159 | N148: 0 | P148: =IF(N155>F144,"Withdrawal is above limit","") -> 
H149: before 5th | J149: Oct | K149: 5000 | L149: =SUM($K$143:K148)+$L$139+IF(H149="before 5th",K149,0) -> 1634747.806 | M149: 11851.92159 | N149: 0
H150: before 5th | J150: Nov | K150: 5000 | L150: =SUM($K$143:K149)+$L$139+IF(H150="before 5th",K150,0) -> 1639747.806 | M150: 11888.17159 | N150: 0
H151: before 5th | J151: Dec | K151: 5000 | L151: =SUM($K$143:K150)+$L$139+IF(H151="before 5th",K151,0) -> 1644747.806 | M151: 11924.42159 | N151: 0
H152: before 5th | J152: Jan | K152: 5000 | L152: =SUM($K$143:K151)+$L$139+IF(H152="before 5th",K152,0) -> 1649747.806 | M152: 11960.67159 | N152: 0
H153: before 5th | J153: Feb | K153: 5000 | L153: =SUM($K$143:K152)+$L$139+IF(H153="before 5th",K153,0) -> 1654747.806 | M153: 11996.92159 | N153: 0
H154: before 5th | J154: Mar | K154: 5000 | L154: =SUM($K$143:K153)+$L$139+IF(H154="before 5th",K154,0) -> 1659747.806 | M154: 12033.17159 | N154: 0
J155: Year End Balance | L155: =SUM(K143:K154)+SUM(M143:M154)+L139-N155 -> 1801753.365 | N155: =MAX(O143:O154) -> 0
J157: 2nd Extension Year 5 | O157: Withdrawal can be made only once in a year
H158: Deposited | J158: Month | K158: Deposit | L158: Balance | M158: Interest | O158: Withdrawal | P158: PPF Interest Rate
H159: before 5th | J159: Apr | K159: 5000 | L159: =$L$155+IF(H159="before 5th",K159,0) -> 1806753.365 | M159: =L159*$P$143/12 -> 13098.9619 | N159: =IF(O159=MAX($O$159:$O$170),O159,IF(N158=MAX($O$159:$O$170),N158,0)) -> 0 | P159: 0.087
D160: =IF($M$9=0,"Withdrawal limit","") -> Withdrawal limit | F160: =60%*$L$91 -> 651399.52 | H160: before 5th | J160: May | K160: 5000 | L160: =SUM($K$159:K159)+$L$155+IF(H160="before 5th",K160,0) -> 1811753.365 | M160: 13135.2119 | N160: =IF(O160=MAX($O$159:$O$170),O160,IF(N159=MAX($O$159:$O$170),N159,0)) -> 0 | P160: PPF investment limit
H161: before 5th | J161: Jun | K161: 5000 | L161: =SUM($K$159:K160)+$L$155+IF(H161="before 5th",K161,0) -> 1816753.365 | M161: 13171.4619 | N161: 0 | P161: 150000
H162: before 5th | J162: Jul | K162: 5000 | L162: =SUM($K$159:K161)+$L$155+IF(H162="before 5th",K162,0) -> 1821753.365 | M162: 13207.7119 | N162: 0 | P162: =IF(SUM(K159:K170)>P161,"Warning: total investment exceeds allowed limit","") -> 
H163: before 5th | J163: Aug | K163: 5000 | L163: =SUM($K$159:K162)+$L$155+IF(H163="before 5th",K163,0) -> 1826753.365 | M163: 13243.9619 | N163: 0
H164: before 5th | J164: Sep | K164: 5000 | L164: =SUM($K$159:K163)+$L$155+IF(H164="before 5th",K164,0) -> 1831753.365 | M164: 13280.2119 | N164: 0 | P164: =IF(N171>F160,"Withdrawal is above limit","") -> 
H165: before 5th | J165: Oct | K165: 5000 | L165: =SUM($K$159:K164)+$L$155+IF(H165="before 5th",K165,0) -> 1836753.365 | M165: 13316.4619 | N165: 0
H166: before 5th | J166: Nov | K166: 5000 | L166: =SUM($K$159:K165)+$L$155+IF(H166="before 5th",K166,0) -> 1841753.365 | M166: 13352.7119 | N166: 0
H167: before 5th | J167: Dec | K167: 5000 | L167: =SUM($K$159:K166)+$L$155+IF(H167="before 5th",K167,0) -> 1846753.365 | M167: 13388.9619 | N167: 0
H168: before 5th | J168: Jan | K168: 5000 | L168: =SUM($K$159:K167)+$L$155+IF(H168="before 5th",K168,0) -> 1851753.365 | M168: 13425.2119 | N168: 0
H169: before 5th | J169: Feb | K169: 5000 | L169: =SUM($K$159:K168)+$L$155+IF(H169="before 5th",K169,0) -> 1856753.365 | M169: 13461.4619 | N169: 0
H170: before 5th | J170: Mar | K170: 5000 | L170: =SUM($K$159:K169)+$L$155+IF(H170="before 5th",K170,0) -> 1861753.365 | M170: 13497.7119 | N170: 0
J171: Year End Balance | L171: =SUM(K159:K170)+SUM(M159:M170)+L155-N171 -> 2021333.408 | N171: =MAX(O159:O170) -> 0

Sheet Interest Rate History
J4: Source:
J5: http://finotax.com/ppf/calculator
